Workbook

Sheet Inicio
C8: Periodo 1998-2014
C20: Captura de Recargos
C22: Captura INPC

Sheet Ejercicio
A1: Protasio Guerra y Asociados, S.C. | E1: pgasc@pgasc.com
A3: IMPUESTOS DEL EJERCICIO FISCAL | G3: Actualizado a
A5: Empresa: | B5: * | C5: - | G5: =INPC!AC56 -> INPC: Diciembre de 2013
A6: Por el ejercicio de: | B6: * | C6: - | G6: =Recargos!J223 -> RECARGOS: Diciembre de 2014
D8: Actuali- | H8: De 1998 a 2014
A9: CALCULOS | C9: Impuestos | D9: cación | E9: Recargos | F9: Total
D10: =Efectua_Calculo!J29 -> 1.0355 | E10: =Recargos!AA208/100 -> 0.1243 | H10: Se debió de efectuar el pago
A12: Impuestos del Ejercicio | H12: Mes | I12: 2 | J12: *
A13: Impuesto sobre la renta | B13: * | C13: 0 | D13: =+ROUND((C13*$D$10)-C13,0) -> 0 | E13: =IF($E$10="error",0,ROUND((C13+D13)*$E$10,0)) -> 0 | F13: =SUM(C13:E13) -> 0 | H13: Año | I13: 2013 | J13: *
A14: Ietu/Impac | B14: * | C14: 0 | D14: =+ROUND((C14*$D$10)-C14,0) -> 0 | E14: =IF($E$10="error",0,ROUND((C14+D14)*$E$10,0)) -> 0 | F14: =SUM(C14:E14) -> 0
A15: - | B15: * | C15: 0 | D15: =+ROUND((C15*$D$10)-C15,0) -> 0 | E15: =IF($E$10="error",0,ROUND((C15+D15)*$E$10,0)) -> 0 | F15: =SUM(C15:E15) -> 0 | H15: Se realizará el pago
A17: Otros Calculos Anuales | H17: Dia | I17: 19
A18: ISR sueldos | B18: * | C18: 0 | D18: =+ROUND((C18*$D$10)-C18,0) -> 0 | E18: =IF($E$10="error",0,ROUND((C18+D18)*$E$10,0)) -> 0 | F18: =SUM(C18:E18) -> 0 | H18: =+H12 -> Mes | I18: 1 | J18: *
A19: - | B19: * | C19: 0 | D19: 0 | E19: 0 | F19: 0 | H19: =+H13 -> Año | I19: 2014 | J19: *
A20: - | B20: * | C20: 0 | D20: 0 | E20: 0 | F20: 0
A21: - | B21: * | C21: 0 | D21: 0 | E21: 0 | F21: 0 | H21: Memoria
A22: - | B22: * | C22: 0 | D22: 0 | E22: 0 | F22: 0 | H22: de Cálculo
A23: - | B23: * | C23: 0 | D23: 0 | E23: 0 | F23: 0 | H23: =IF(D10=0,"Verifique correcta captura de INPC","") -> 
B25: Totales | C25: =SUM(C13:C23) -> 0 | D25: =SUM(D13:D23) -> 0 | E25: =SUM(E13:E23) -> 0 | F25: =SUM(F13:F23) -> 0 | H25: Regresa al Menú Anterior
A27: Articulo 21 del CFF
A28: Articulo 17-A del CFF

Sheet Calcular
A1: Protasio Guerra y Asociados, S.C. | E1: pgasc@pgasc.com
A3: IMPUESTOS PROVISIONALES, DEFINITIVOS Y ENTERO DE RETENCIONES MENSALES | G3: Actualizado a
A5: Empresa: | B5: * | C5: - | G5: =INPC!AC56 -> INPC: Diciembre de 2013
A6: Período: | B6: * | C6: - | G6: =Recargos!J223 -> RECARGOS: Diciembre de 2014
D8: Actuali- | H8: De 1998 a 2014
A9: CALCULOS | C9: Impuestos | D9: cación | E9: Recargos | F9: Total
D10: =Efectua_Calculo!J14 -> 1.017 | E10: =Recargos!I221/100 -> 0.0452 | H10: Se debió de efectuar el pago
A12: Pagos Prov. o Definitivos | H12: Mes | I12: 1 | J12: *
A13: Impuesto sobre la renta | B13: * | C13: 0 | D13: =+ROUND((C13*$D$10)-C13,0) -> 0 | E13: =IF($E$10="error",0,ROUND((C13+D13)*$E$10,0)) -> 0 | F13: =SUM(C13:E13) -> 0 | H13: Año | I13: 2013 | J13: *
A14: Impac/Ietu | B14: * | C14: 0 | D14: =+ROUND((C14*$D$10)-C14,0) -> 0 | E14: =IF($E$10="error",0,ROUND((C14+D14)*$E$10,0)) -> 0 | F14: =SUM(C14:E14) -> 0
A15: Impuesto al valor agregado | B15: * | C15: 0 | D15: =+ROUND((C15*$D$10)-C15,0) -> 0 | E15: 0 | F15: =SUM(C15:E15) -> 0 | H15: Se realizará el pago
A17: Retenciones | H17: Día | I17: 15 | J17: *
A18: ISR sueldos | B18: * | C18: 0 | D18: =+ROUND((C18*$D$10)-C18,0) -> 0 | E18: 0 | F18: =SUM(C18:E18) -> 0 | H18: =+H12 -> Mes | I18: 5 | J18: *
A19: ISR asimilables | B19: * | C19: 0 | D19: 0 | E19: 0 | F19: 0 | H19: =+H13 -> Año | I19: 2013 | J19: *
A20: ISR honorarios | B20: * | C20: 0 | D20: 0 | E20: 0 | F20: 0
A21: ISR arrendamiento | B21: * | C21: 0 | D21: 0 | E21: 0 | F21: 0 | H21: Memoria
A22: ISR extranjero | B22: * | C22: 0 | D22: 0 | E22: 0 | F22: 0 | H22: de Cálculo
A23: IVA retenido | B23: * | C23: 0 | D23: 0 | E23: 0 | F23: 0
A25: Otros | H25: =IF(D10=0,"Verifique correcta captura de INPC","") -> 
A26: Iespys | B26: * | C26: 0 | D26: =+ROUND((C26*$D$10)-C26,0) -> 0 | E26: 0 | F26: =SUM(C26:E26) -> 0
A27: Iscas | B27: * | C27: 0 | D27: =+ROUND((C27*$D$10)-C27,0) -> 0 | E27: 0 | F27: =SUM(C27:E27) -> 0 | H27: Regresa al Menú Anterior
A28: - | B28: * | C28: 0 | D28: =+ROUND((C28*$D$10)-C28,0) -> 0 | E28: 0 | F28: =SUM(C28:E28) -> 0
A29: - | B29: * | C29: 0 | D29: =+ROUND((C29*$D$10)-C29,0) -> 0 | E29: 0 | F29: =SUM(C29:E29) -> 0
B31: Totales | C31: =SUM(C13:C29) -> 0 | D31: =SUM(D13:D29) -> 0 | E31: =SUM(E13:E29) -> 0 | F31: =SUM(F13:F29) -> 0
A33: Articulo 21 del CFF
A34: Articulo 17-A del CFF

Sheet INPC
A2: Indice Nacional del Precios al Consumidor | D2: INPC Base = 2a Quincena Diciembre de 2010 | G2: Regresar al Menú de Cálculo
A4: Año | B4: Enero | C4: Febrero | D4: Marzo | E4: Abril | F4: Mayo | G4: Junio | H4: Julio | I4: Agosto | J4: Septiembre | K4: Octubre | L4: Noviembre | M4: Diciembre | P4: Enero | Q4: Febrero | R4: Marzo | S4: Abril | T4: Mayo | U4: Junio | V4: Julio | W4: Agosto | X4: Septiembre | Y4: Octubre | Z4: Noviembre | AA4: Diciembre
A6: 1969 | B6: 0.0154341266 | C6: 0.01548952163 | D6: 0.01550480991 | E6: 0.01554683373 | F6: 0.01554683373 | G6: 0.01560223566 | H6: 0.01566145794 | I6: 0.0156786564 | J6: 0.01582575355 | K6: 0.01599195934 | L6: 0.01599386951 | M6: 0.01611422424
A7: 1970 | B7: 0.01623648914 | C7: 0.01623457897 | D7: 0.0162823402 | E7: 0.01630335211 | F7: 0.01633774213 | G7: 0.01643708495 | H7: 0.01651731914 | I7: 0.01659373298 | J7: 0.01663385352 | K7: 0.01663958404 | L7: 0.01672937599 | M7: 0.01687074262
A8: 1971 | B8: 0.01703694841 | C8: 0.01710763173 | D8: 0.01717258453 | E8: 0.0172604663 | F8: 0.0172967665 | G8: 0.01737509051 | H8: 0.01736171929 | I8: 0.01752027749 | J8: 0.01757758959 | K8: 0.01759478805 | L8: 0.01762344066 | M8: 0.01770750209
A9: 1972 | B9: 0.0177858261 | C9: 0.01784122803 | D9: 0.01793866067 | E9: 0.0180513747 | F9: 0.018087668 | G9: 0.01822139394 | H9: 0.01829017398 | I9: 0.01841052871 | J9: 0.01849458324 | K9: 0.01850795446 | L9: 0.01862830919 | M9: 0.01869135871
A10: 1973 | B10: 0.01896263094 | C10: 0.01911928586 | D10: 0.01928740182 | E10: 0.01959306407 | F10: 0.01980130057 | G10: 0.01996367912 | H10: 0.0204756677 | I10: 0.02080425893 | J10: 0.02129904905 | K10: 0.02157223835 | L10: 0.02183778696 | M10: 0.02268600056
A11: 1974 | B11: 0.02349792088 | C11: 0.02402901119 | D11: 0.02421432561 | E11: 0.02454290995 | F11: 0.02473586506 | G11: 0.02498039486 | H11: 0.02534145904 | I11: 0.02560891782 | J11: 0.02589929868 | K11: 0.02641319054 | L11: 0.02714678684 | M11: 0.02735884369
A12: 1975 | B12: 0.02770844683 | C12: 0.02786127451 | D12: 0.02803703116 | E12: 0.02827392027 | F12: 0.02865218291 | G12: 0.02913933234 | H12: 0.0293724011 | I12: 0.02962648866 | J12: 0.02984235896 | K12: 0.02999519353 | L12: 0.03020534021 | M12: 0.03045178018
A13: 1976 | B13: 0.0310401826 | C13: 0.03162094433 | D13: 0.03193042693 | E13: 0.03215394482 | F13: 0.03237937288 | G13: 0.03250927848 | H13: 0.03278437795 | I13: 0.0330976809 | J13: 0.0342267314 | K13: 0.0361543241 | L13: 0.03778771558 | M13: 0.03873527201
A14: 1977 | B14: 0.03996939585 | C14: 0.04085199948 | D14: 0.04156457697 | E14: 0.04219309993 | F14: 0.04256371498 | G14: 0.04308525442 | H14: 0.04357241075 | I14: 0.04446647542 | J14: 0.04525547365 | K14: 0.04560125644 | L14: 0.04609986691 | M14: 0.04673794074
A15: 1978 | B15: 0.04777719929 | C15: 0.04846303435 | D15: 0.04896737534 | E15: 0.04951184377 | F15: 0.04999708302 | G15: 0.05068482826 | H15: 0.0515445098 | I15: 0.05205840856 | J15: 0.0526525415 | K15: 0.05329061532 | L15: 0.0538388972 | M15: 0.05429548385
A16: 1979 | B16: 0.05622307655 | C16: 0.05703117651 | D16: 0.05780488646 | E16: 0.05832260556 | F16: 0.05908677153 | G16: 0.05974203692 | H16: 0.06046607545 | I16: 0.06138115893 | J16: 0.06213385696 | K16: 0.06321896657 | L16: 0.06403279706 | M16: 0.06516566101
A17: 1980 | B17: 0.06834265893 | C17: 0.06992255867 | D17: 0.07136109176 | E17: 0.07260857992 | F17: 0.07379303235 | G17: 0.0752563977 | H17: 0.07735783688 | I17: 0.0789606587 | J17: 0.0798375387 | K17: 0.08104681649 | L17: 0.08245287664 | M17: 0.08461544827
A18: 1981 | B18: 0.08734159006 | C18: 0.08948697013 | D18: 0.09140118472 | E18: 0.09346251026 | F18: 0.0948762042 | G18: 0.09620202327 | H18: 0.09789654721 | I18: 0.09991393185 | J18: 0.1017727514 | K18: 0.1040308455 | L18: 0.1060329419 | M18: 0.1088870791
A19: 1982 | B19: 0.114297332 | C19: 0.1187886879 | D19: 0.1231272024 | E19: 0.1298002317 | F19: 0.1370960535 | G19: 0.1437003027 | H19: 0.1511050182 | I19: 0.1680617255 | J19: 0.1770329695 | K19: 0.1862105328 | L19: 0.1956249853 | M19: 0.216515209
A20: 1983 | B20: 0.2400742623 | C20: 0.2529580038 | D20: 0.2652017612 | E20: 0.2819922628 | F20: 0.294222649 | G20: 0.3053641053 | H20: 0.3204619931 | I20: 0.3329006089 | J20: 0.3431460904 | K20: 0.3545320695 | L20: 0.3753535269 | M20: 0.3914123492
A21: 1984 | B21: 0.4162781199 | C21: 0.4382477226 | D21: 0.456979195 | E21: 0.4767480157 | F21: 0.4925565777 | G21: 0.5103825243 | H21: 0.5271138105 | I21: 0.5420970741 | J21: 0.5582456883 | K21: 0.5777508775 | L21: 0.5975789205 | M21: 0.6229585899
A22: 1985 | B22: 0.6691692607 | C22: 0.6969694027 | D22: 0.7239767331 | E22: 0.7462539083 | F22: 0.7639327509 | G22: 0.7830654079 | H22: 0.8103363698 | I22: 0.8457628351 | J22: 0.8795406205 | K22: 0.9129516112 | L22: 0.9550721108 | M22: 1.020090675
A23: 1986 | B23: 1.110276851 | C23: 1.15963777 | D23: 1.2135378 | E23: 1.276894313 | F23: 1.34785231 | G23: 1.434370512 | H23: 1.50593984 | I23: 1.626004669 | J23: 1.723549709 | K23: 1.822069042 | L23: 1.945171412 | M23: 2.098822995
A24: 1987 | B24: 2.268762649 | C24: 2.432470572 | D24: 2.593225021 | E24: 2.820119431 | F24: 3.032724052 | G24: 3.252120148 | H24: 3.515516574 | I24: 3.802838856 | J24: 4.053368746 | K24: 4.391158069 | L24: 4.739467965 | M24: 5.439478729
A25: 1988 | B25: 6.28055153 | C25: 6.80439664 | D25: 7.152836449 | E25: 7.372994794 | F25: 7.515648197 | G25: 7.668971189 | H25: 7.796977554 | I25: 7.86870735 | J25: 7.913693455 | K25: 7.974056367 | L25: 8.080769414 | M25: 8.249371787
A26: 1989 | B26: 8.451312551 | C26: 8.566001517 | D26: 8.658862254 | E26: 8.788353003 | F26: 8.909317634 | G26: 9.017518878 | H26: 9.107720335 | I26: 9.194488804 | J26: 9.282422617 | K26: 9.419703978 | L26: 9.55192469 | M26: 9.874287533
A27: 1990 | B27: 10.35083877 | C27: 10.58522578 | D27: 10.77183558 | E27: 10.93577849 | F27: 11.12661601 | G27: 11.37167642 | H27: 11.57905991 | I27: 11.77635267 | J27: 11.94422145 | K27: 12.11593396 | L27: 12.4376167 | M27: 12.82961936
A28: 1991 | B28: 13.15663021 | C28: 13.38630808 | D28: 13.57721055 | E28: 13.71943793 | F28: 13.85355376 | G28: 13.99891993 | H28: 14.12262981 | I28: 14.22091799 | J28: 14.36258563 | K28: 14.52963103 | L28: 14.89040629 | M28: 15.24089786
A29: 1992 | B29: 15.51790207 | C29: 15.70175899 | D29: 15.86155633 | E29: 16.00295269 | F29: 16.10846601 | G29: 16.21749445 | H29: 16.31989382 | I29: 16.42015353 | J29: 16.56298842 | K29: 16.6822528 | L29: 16.82085807 | M29: 17.06037067
A30: 1993 | B30: 17.27436988 | C30: 17.41550261 | D30: 17.51699835 | E30: 17.61801267 | F30: 17.71872134 | G30: 17.81810227 | H30: 17.90372831 | I30: 17.99955398 | J30: 18.13286363 | K30: 18.20702345 | L30: 18.28732903 | M30: 18.42676723
A31: 1994 | B31: 18.56962314 | C31: 18.66512978 | D31: 18.76110447 | E31: 18.85298708 | F31: 18.94407687 | G31: 19.03886902 | H31: 19.12330489 | I31: 19.21243652 | J31: 19.34907599 | K31: 19.45065197 | L31: 19.55463314 | M31: 19.72613932
A32: 1995 | B32: 20.46862019 | C32: 21.33613293 | D32: 22.59392133 | E32: 24.3942825 | F32: 25.4138631 | G32: 26.22043406 | H32: 26.75496405 | I32: 27.19875002 | J32: 27.76136288 | K32: 28.33257255 | L32: 29.03120591 | M32: 29.97704506
A33: 1996 | B33: 31.05470183 | C33: 31.77950767 | D33: 32.47909623 | E33: 33.40239265 | F33: 34.01123721 | G33: 34.56506223 | H33: 35.05641717 | I33: 35.52236378 | J33: 36.09032576 | K33: 36.54079814 | L33: 37.09443212 | M33: 38.28212794
A34: 1997 | B34: 39.26655717 | C34: 39.92640941 | D34: 40.4233045 | E34: 40.860022 | F34: 41.23293212 | G34: 41.59877377 | H34: 41.96117668 | I34: 42.33427784 | J34: 42.86154831 | K34: 43.20408307 | L34: 43.68741432 | M34: 44.29950655
A35: 1998 | B35: 45.26330346 | C35: 46.05573748 | D35: 46.5952345 | E35: 47.03118783 | F35: 47.40581731 | G35: 47.9661377 | H35: 48.42864559 | I35: 48.89421013 | J35: 49.68721726 | K35: 50.39922341 | L35: 51.2917624 | M35: 52.54326558
A36: 1999 | B36: 53.87012062 | C36: 54.59408022 | D36: 55.10129148 | E36: 55.60697442 | F36: 55.94148549 | G36: 56.3090465 | H36: 56.68119247 | I36: 57.0002293 | J36: 57.55099768 | K36: 57.91550204 | L36: 58.43054594 | M36: 59.01589258 | O36: =IF(SUM(B36:M36)=0,0,IF(M36=0,"*",IF(B37=0,"*","@"))) -> @
A37: 2000 | B37: 59.80832658 | C37: 60.33884472 | D37: 60.6733558 | E37: 61.01856512 | F37: 61.24666691 | G37: 61.60945191 | H37: 61.84978026 | I37: 62.18964046 | J37: 62.64393363 | K37: 63.075302 | L37: 63.61460798 | M37: 64.30330726 | O37: @
A38: 2001 | B38: 64.65978794 | C38: 64.61699498 | D38: 65.02639374 | E38: 65.35440947 | F38: 65.50437588 | G38: 65.65930934 | H38: 65.4887106 | I38: 65.87671289 | J38: 66.48995136 | K38: 66.79045731 | L38: 67.04205702 | M38: 67.13490247 | O38: @
A39: 2002 | B39: 67.7546363 | C39: 67.71107918 | D39: 68.05743473 | E39: 68.42919862 | F39: 68.56789368 | G39: 68.90221371 | H39: 69.10001172 | I39: 69.36274679 | J39: 69.77995076 | K39: 70.0875094 | L39: 70.65435513 | M39: 70.96191376 | O39: @
A40: 2003 | B40: 71.24878459 | C40: 71.44669788 | D40: 71.89769193 | E40: 72.02043955 | F40: 71.78804659 | G40: 71.84735162 | H40: 71.95148021 | I40: 72.16732293 | J40: 72.59693958 | K40: 72.86312262 | L40: 73.46789598 | M40: 73.78372973 | O40: @
A41: 2004 | B41: 74.24230931 | C41: 74.68640743 | D41: 74.93948818 | E41: 75.05258149 | F41: 74.86432251 | G41: 74.98431175 | H41: 75.18084586 | I41: 75.64494218 | J41: 76.27040334 | K41: 76.79863185 | L41: 77.45374553 | M41: 77.61373118 | O41: @
A42: 2005 | B42: 77.61648956 | C42: 77.87508706 | D42: 78.22609007 | E42: 78.50468579 | F42: 78.30746209 | G42: 78.23229641 | H42: 78.53847586 | I42: 78.63226056 | J42: 78.94740472 | K42: 79.14118045 | L42: 79.71078455 | M42: 80.20039583 | O42: =IF(SUM(B42:M42)=0,0,IF(M42=0,"*",IF(B43=0,"*","@"))) -> @ | P42: =IF(B42=0,0,IF(C42=0,1,0)) -> 0 | Q42: =IF(C42=0,0,IF(D42=0,2,0)) -> 0 | R42: =IF(D42=0,0,IF(E42=0,3,0)) -> 0 | S42: =IF(E42=0,0,IF(F42=0,4,0)) -> 0 | T42: =IF(F42=0,0,IF(G42=0,5,0)) -> 0 | U42: =IF(G42=0,0,IF(H42=0,6,0)) -> 0 | V42: =IF(H42=0,0,IF(I42=0,7,0)) -> 0 | W42: =IF(I42=0,0,IF(J42=0,8,0)) -> 0 | X42: =IF(J42=0,0,IF(K42=0,9,0)) -> 0 | Y42: =IF(K42=0,0,IF(L42=0,10,0)) -> 0 | Z42: =IF(L42=0,0,IF(M42=0,11,0)) -> 0 | AA42: =IF(M42=0,0,IF(B43=0,12,0)) -> 0 | AC42: =IF(O42=0,0,SUM(P42:AA42)) -> 0 | AD42: =IF(O42="*",A42,0) -> 0
A43: 2006 | B43: 80.67069849 | C43: 80.7941357 | D43: 80.89550592 | E43: 81.01411598 | F43: 80.65345866 | G43: 80.72310758 | H43: 80.94446705 | I43: 81.35753346 | J43: 82.17883914 | K43: 82.53811727 | L43: 82.97118189 | M43: 83.45113886 | O43: =IF(SUM(B43:M43)=0,0,IF(M43=0,"*",IF(B44=0,"*","@"))) -> @ | P43: =IF(B43=0,0,IF(C43=0,1,0)) -> 0 | Q43: =IF(C43=0,0,IF(D43=0,2,0)) -> 0 | R43: =IF(D43=0,0,IF(E43=0,3,0)) -> 0 | S43: =IF(E43=0,0,IF(F43=0,4,0)) -> 0 | T43: =IF(F43=0,0,IF(G43=0,5,0)) -> 0 | U43: =IF(G43=0,0,IF(H43=0,6,0)) -> 0 | V43: =IF(H43=0,0,IF(I43=0,7,0)) -> 0 | W43: =IF(I43=0,0,IF(J43=0,8,0)) -> 0 | X43: =IF(J43=0,0,IF(K43=0,9,0)) -> 0 | Y43: =IF(K43=0,0,IF(L43=0,10,0)) -> 0 | Z43: =IF(L43=0,0,IF(M43=0,11,0)) -> 0 | AA43: =IF(M43=0,0,IF(B44=0,12,0)) -> 0 | AC43: =IF(O43=0,0,SUM(P43:AA43)) -> 0 | AD43: =IF(O43="*",A43,0) -> 0
A44: 2007 | B44: 83.88213471 | C44: 84.11659644 | D44: 84.29864909 | E44: 84.24830877 | F44: 83.83731114 | G44: 83.93799177 | H44: 84.29451153 | I44: 84.63792901 | J44: 85.29511147 | K44: 85.62749547 | L44: 86.23157924 | M44: 86.588099 | O44: =IF(SUM(B44:M44)=0,0,IF(M44=0,"*",IF(B45=0,"*","@"))) -> @ | P44: =IF(B44=0,0,IF(C44=0,1,0)) -> 0 | Q44: =IF(C44=0,0,IF(D44=0,2,0)) -> 0 | R44: =IF(D44=0,0,IF(E44=0,3,0)) -> 0 | S44: =IF(E44=0,0,IF(F44=0,4,0)) -> 0 | T44: =IF(F44=0,0,IF(G44=0,5,0)) -> 0 | U44: =IF(G44=0,0,IF(H44=0,6,0)) -> 0 | V44: =IF(H44=0,0,IF(I44=0,7,0)) -> 0 | W44: =IF(I44=0,0,IF(J44=0,8,0)) -> 0 | X44: =IF(J44=0,0,IF(K44=0,9,0)) -> 0 | Y44: =IF(K44=0,0,IF(L44=0,10,0)) -> 0 | Z44: =IF(L44=0,0,IF(M44=0,11,0)) -> 0 | AA44: =IF(M44=0,0,IF(B45=0,12,0)) -> 0 | AC44: =IF(O44=0,0,SUM(P44:AA44)) -> 0 | AD44: =IF(O44="*",A44,0) -> 0
A45: 2008 | B45: 86.98944233 | C45: 87.24803983 | D45: 87.88039693 | E45: 88.080379 | F45: 87.98521512 | G45: 88.34932041 | H45: 88.84169006 | I45: 89.35474751 | J45: 89.96365843 | K45: 90.57670692 | L45: 91.60626978 | M45: 92.24069566 | O45: =IF(SUM(B45:M45)=0,0,IF(M45=0,"*",IF(B46=0,"*","@"))) -> @ | P45: =IF(B45=0,0,IF(C45=0,1,0)) -> 0 | Q45: =IF(C45=0,0,IF(D45=0,2,0)) -> 0 | R45: =IF(D45=0,0,IF(E45=0,3,0)) -> 0 | S45: =IF(E45=0,0,IF(F45=0,4,0)) -> 0 | T45: =IF(F45=0,0,IF(G45=0,5,0)) -> 0 | U45: =IF(G45=0,0,IF(H45=0,6,0)) -> 0 | V45: =IF(H45=0,0,IF(I45=0,7,0)) -> 0 | W45: =IF(I45=0,0,IF(J45=0,8,0)) -> 0 | X45: =IF(J45=0,0,IF(K45=0,9,0)) -> 0 | Y45: =IF(K45=0,0,IF(L45=0,10,0)) -> 0 | Z45: =IF(L45=0,0,IF(M45=0,11,0)) -> 0 | AA45: =IF(M45=0,0,IF(B46=0,12,0)) -> 0 | AC45: =IF(O45=0,0,SUM(P45:AA45)) -> 0 | AD45: =IF(O45="*",A45,0) -> 0
A46: 2009 | B46: 92.4544696 | C46: 92.65858923 | D46: 93.19164489 | E46: 93.51782254 | F46: 93.24543317 | G46: 93.41714191 | H46: 93.67160186 | I46: 93.89571969 | J46: 94.36671195 | K46: 94.6522036 | L46: 95.14319406 | M46: 95.53695186 | O46: =IF(SUM(B46:M46)=0,0,IF(M46=0,"*",IF(B47=0,"*","@"))) -> @ | P46: =IF(B46=0,0,IF(C46=0,1,0)) -> 0 | Q46: =IF(C46=0,0,IF(D46=0,2,0)) -> 0 | R46: =IF(D46=0,0,IF(E46=0,3,0)) -> 0 | S46: =IF(E46=0,0,IF(F46=0,4,0)) -> 0 | T46: =IF(F46=0,0,IF(G46=0,5,0)) -> 0 | U46: =IF(G46=0,0,IF(H46=0,6,0)) -> 0 | V46: =IF(H46=0,0,IF(I46=0,7,0)) -> 0 | W46: =IF(I46=0,0,IF(J46=0,8,0)) -> 0 | X46: =IF(J46=0,0,IF(K46=0,9,0)) -> 0 | Y46: =IF(K46=0,0,IF(L46=0,10,0)) -> 0 | Z46: =IF(L46=0,0,IF(M46=0,11,0)) -> 0 | AA46: =IF(M46=0,0,IF(B47=0,12,0)) -> 0 | AC46: =IF(O46=0,0,SUM(P46:AA46)) -> 0 | AD46: =IF(O46="*",A46,0) -> 0
A47: 2010 | B47: 96.57547944 | C47: 97.13405005 | D47: 97.8236434 | E47: 97.5119472 | F47: 96.89751953 | G47: 96.86717743 | H47: 97.0775034 | I47: 97.34713439 | J47: 97.85743347 | K47: 98.46151724 | L47: 99.25041203 | M47: 99.74209209 | O47: =IF(SUM(B47:M47)=0,0,IF(M47=0,"*",IF(B48=0,"*","@"))) -> @ | P47: =IF(B47=0,0,IF(C47=0,1,0)) -> 0 | Q47: =IF(C47=0,0,IF(D47=0,2,0)) -> 0 | R47: =IF(D47=0,0,IF(E47=0,3,0)) -> 0 | S47: =IF(E47=0,0,IF(F47=0,4,0)) -> 0 | T47: =IF(F47=0,0,IF(G47=0,5,0)) -> 0 | U47: =IF(G47=0,0,IF(H47=0,6,0)) -> 0 | V47: =IF(H47=0,0,IF(I47=0,7,0)) -> 0 | W47: =IF(I47=0,0,IF(J47=0,8,0)) -> 0 | X47: =IF(J47=0,0,IF(K47=0,9,0)) -> 0 | Y47: =IF(K47=0,0,IF(L47=0,10,0)) -> 0 | Z47: =IF(L47=0,0,IF(M47=0,11,0)) -> 0 | AA47: =IF(M47=0,0,IF(B48=0,12,0)) -> 0 | AC47: =IF(O47=0,0,SUM(P47:AA47)) -> 0 | AD47: =IF(O47="*",A47,0) -> 0
A48: 2011 | B48: 100.228 | C48: 100.604 | D48: 100.797 | E48: 100.789 | F48: 100.046 | G48: 100.041 | H48: 100.521 | I48: 100.68 | J48: 100.927 | K48: 101.608 | L48: 102.707 | M48: 103.551 | O48: @ | P48: 0 | Q48: 0 | R48: 0 | S48: 0 | T48: 0 | U48: 0 | V48: 0 | W48: 0 | X48: 0 | Y48: 0 | Z48: 0 | AA48: 0 | AC48: 0 | AD48: 0
A49: 2012 | B49: 104.284 | C49: 104.496 | D49: 104.556 | E49: 104.228 | F49: 103.899 | G49: 104.378 | H49: 104.964 | I49: 105.279 | J49: 105.743 | K49: 106.278 | L49: 107 | M49: 107.246 | O49: @ | P49: 0 | Q49: 0 | R49: 0 | S49: 0 | T49: 0 | U49: 0 | V49: 0 | W49: 0 | X49: 0 | Y49: 0 | Z49: 0 | AA49: 0 | AC49: 0 | AD49: 0
A50: 2013 | B50: 107.678 | C50: 108.208 | D50: 109.002 | E50: 109.074 | F50: 108.711 | G50: 108.645 | H50: 108.609 | I50: 108.918 | J50: 109.328 | K50: 109.848 | L50: 110.872 | M50: 111.508 | O50: * | P50: 0 | Q50: 0 | R50: 0 | S50: 0 | T50: 0 | U50: 0 | V50: 0 | W50: 0 | X50: 0 | Y50: 0 | Z50: 0 | AA50: 12 | AC50: 12 | AD50: 2013
A51: 2014 | B51: 0 | C51: 0 | D51: 0 | E51: 0 | F51: 0 | G51: 0 | H51: 0 | I51: 0 | J51: 0 | K51: 0 | L51: 0 | M51: 0 | O51: =IF(SUM(B51:M51)=0,0,IF(M51=0,"*",IF(B52=0,"*","@"))) -> 0 | P51: =IF(B51=0,0,IF(C51=0,1,0)) -> 0 | Q51: =IF(C51=0,0,IF(D51=0,2,0)) -> 0 | R51: =IF(D51=0,0,IF(E51=0,3,0)) -> 0 | S51: =IF(E51=0,0,IF(F51=0,4,0)) -> 0 | T51: =IF(F51=0,0,IF(G51=0,5,0)) -> 0 | U51: =IF(G51=0,0,IF(H51=0,6,0)) -> 0 | V51: =IF(H51=0,0,IF(I51=0,7,0)) -> 0 | W51: =IF(I51=0,0,IF(J51=0,8,0)) -> 0 | X51: =IF(J51=0,0,IF(K51=0,9,0)) -> 0 | Y51: =IF(K51=0,0,IF(L51=0,10,0)) -> 0 | Z51: =IF(L51=0,0,IF(M51=0,11,0)) -> 0 | AA51: =IF(M51=0,0,IF(B52=0,12,0)) -> 0 | AC51: =IF(O51=0,0,SUM(P51:AA51)) -> 0 | AD51: =IF(O51="*",A51,0) -> 0
AC53: =SUM(AC42:AC51) -> 12 | AD53: =SUM(AD42:AD51) -> 2013
AC56: =CONCATENATE("INPC: ",VLOOKUP(AC53,Meses,2)," de ",AD53) -> INPC: Diciembre de 2013

Sheet Recargos
A1: Año | B1: Mes | C1: Mes | E1: Recargos | I1: Para PP | L1: =Calcular!I12 -> 1 | M1: =Calcular!I13 -> 2013 | N1: =CONCATENATE(TEXT(M1,0),RIGHT("00"&TEXT(L1,0),2)) -> 201301 | W1: =Ejercicio!I12 -> 2 | X1: =Ejercicio!I13 -> 2013 | Y1: =CONCATENATE(TEXT(X1,0),RIGHT("00"&TEXT(W1+1,0),2)) -> 201303
I2: 0 | K2: =Calcular!I17 -> 15 | L2: =Calcular!I18 -> 5 | M2: =Calcular!I19 -> 2013 | N2: =IF(K2>17,CONCATENATE(TEXT(M2,0),RIGHT("00"&TEXT(L2,0),2)),IF(L2=1,CONCATENATE(TEXT(M2-1,0),TEXT(12,0)),CONCATENATE(TEXT(M2,0),RIGHT("00"&TEXT(L2-1,0),2)))) -> 201304 | W2: =Ejercicio!I18 -> 1 | X2: =Ejercicio!I19 -> 2014 | Y2: =CONCATENATE(TEXT(X2,0),RIGHT("00"&TEXT(W2,0),2)) -> 201401 | AA2: 0
A3: 1998 | B3: 1 | C3: =VLOOKUP(B3,Meses,2) -> Enero | D3: =+CONCATENATE(TEXT(A3,0),RIGHT("00"&TEXT(B3,0),2)) -> 199801 | E3: 2.48 | H3: 3 | I3: =IF($N$2<$N$1,0,IF(I2=0,IF(D3=$N$1,E3,0),IF(D3>$N$2,0,E3))) -> 0 | R3: =H3 -> 3 | S3: =D3 -> 199801 | T3: =E3 -> 2.48 | AA3: =IF(AA2=0,IF(D3=$Y$1,E3,0),IF(D3>$Y$2,0,E3)) -> 0
A4: 1998 | B4: 2 | C4: Febrero | D4: =+CONCATENATE(TEXT(A4,0),RIGHT("00"&TEXT(B4,0),2)) -> 199802 | E4: 1.74 | H4: =H3+1 -> 4 | I4: 0 | R4: =H4 -> 4 | S4: =D4 -> 199802 | T4: =E4 -> 1.74 | AA4: =IF(AA3=0,IF(D4=$Y$1,E4,0),IF(D4>$Y$2,0,E4)) -> 0
A5: 1998 | B5: 3 | C5: Marzo | D5: 199803 | E5: 0.44 | H5: =H4+1 -> 5 | I5: 0 | R5: 5 | S5: 199803 | T5: 0.44 | AA5: 0
A6: 1998 | B6: 4 | C6: Abril | D6: 199804 | E6: 1.22 | H6: 6 | I6: 0 | R6: 6 | S6: 199804 | T6: 1.22 | AA6: 0
A7: 1998 | B7: 5 | C7: Mayo | D7: 199805 | E7: 2.31 | H7: 7 | I7: 0 | O7: 1 | P7: Enero | R7: 7 | S7: 199805 | T7: 2.31 | AA7: 0
A8: 1998 | B8: 6 | C8: Junio | D8: 199806 | E8: 2.45 | H8: 8 | I8: 0 | O8: 2 | P8: Febrero | R8: 8 | S8: 199806 | T8: 2.45 | AA8: 0
A9: 1998 | B9: 7 | C9: Julio | D9: 199807 | E9: 2.54 | H9: 9 | I9: 0 | O9: 3 | P9: Marzo | R9: 9 | S9: 199807 | T9: 2.54 | AA9: 0
A10: 1998 | B10: 8 | C10: Agosto | D10: 199808 | E10: 2.25 | H10: 10 | I10: 0 | O10: 4 | P10: Abril | R10: 10 | S10: 199808 | T10: 2.25 | AA10: 0
A11: 1998 | B11: 9 | C11: Septiembre | D11: 199809 | E11: 2.66 | H11: 11 | I11: 0 | O11: 5 | P11: Mayo | R11: 11 | S11: 199809 | T11: 2.66 | AA11: 0
A12: 1998 | B12: 10 | C12: Octubre | D12: 199810 | E12: 3 | H12: 12 | I12: 0 | O12: 6 | P12: Junio | R12: 12 | S12: 199810 | T12: 3 | AA12: 0
A13: 1998 | B13: 11 | C13: Noviembre | D13: 199811 | E13: 3 | H13: 13 | I13: 0 | O13: 7 | P13: Julio | R13: 13 | S13: 199811 | T13: 3 | AA13: 0
A14: 1998 | B14: 12 | C14: Diciembre | D14: 199812 | E14: 3 | H14: 14 | I14: 0 | O14: 8 | P14: Agosto | R14: 14 | S14: 199812 | T14: 3 | AA14: 0
A15: 1999 | B15: 1 | C15: Enero | D15: 199901 | E15: 3 | H15: 15 | I15: 0 | O15: 9 | P15: Septiembre | R15: 15 | S15: 199901 | T15: 3 | AA15: 0
A16: 1999 | B16: 2 | C16: Febrero | D16: 199902 | E16: 3 | H16: 16 | I16: 0 | O16: 10 | P16: Octubre | R16: 16 | S16: 199902 | T16: 3 | AA16: 0
A17: 1999 | B17: 3 | C17: Marzo | D17: 199903 | E17: 2.92 | H17: 17 | I17: 0 | O17: 11 | P17: Noviembre | R17: 17 | S17: 199903 | T17: 2.92 | AA17: 0
A18: 1999 | B18: 4 | C18: Abril | D18: 199904 | E18: 3 | H18: 18 | I18: 0 | O18: 12 | P18: Diciembre | R18: 18 | S18: 199904 | T18: 3 | AA18: 0
A19: 1999 | B19: 5 | C19: Mayo | D19: 199905 | E19: 3 | H19: 19 | I19: 0 | R19: 19 | S19: 199905 | T19: 3 | AA19: 0
A20: 1999 | B20: 6 | C20: Junio | D20: 199906 | E20: 2.85 | H20: 20 | I20: 0 | R20: 20 | S20: 199906 | T20: 2.85 | AA20: 0
A21: 1999 | B21: 7 | C21: Julio | D21: 199907 | E21: 3 | H21: 21 | I21: 0 | R21: 21 | S21: 199907 | T21: 3 | AA21: 0
A22: 1999 | B22: 8 | C22: Agosto | D22: 199908 | E22: 3 | H22: 22 | I22: 0 | R22: 22 | S22: 199908 | T22: 3 | AA22: 0
A23: 1999 | B23: 9 | C23: Septiembre | D23: 199909 | E23: 3 | H23: 23 | I23: 0 | R23: 23 | S23: 199909 | T23: 3 | AA23: 0
A24: 1999 | B24: 10 | C24: Octubre | D24: 199910 | E24: 3 | H24: 24 | I24: 0 | R24: 24 | S24: 199910 | T24: 3 | AA24: 0
A25: 1999 | B25: 11 | C25: Noviembre | D25: 199911 | E25: 2.7 | H25: 25 | I25: 0 | R25: 25 | S25: 199911 | T25: 2.7 | AA25: 0
A26: 1999 | B26: 12 | C26: Diciembre | D26: 199912 | E26: 2.92 | H26: 26 | I26: 0 | R26: 26 | S26: 199912 | T26: 2.92 | AA26: 0
A27: 2000 | B27: 1 | C27: Enero | D27: 200001 | E27: 2.23 | H27: 27 | I27: 0 | R27: 27 | S27: 200001 | T27: 2.23 | AA27: 0
A28: 2000 | B28: 2 | C28: Febrero | D28: 200002 | E28: 2.01 | H28: 28 | I28: 0 | R28: 28 | S28: 200002 | T28: 2.01 | AA28: 0
A29: 2000 | B29: 3 | C29: Marzo | D29: 200003 | E29: 1.47 | H29: 29 | I29: 0 | R29: 29 | S29: 200003 | T29: 1.47 | AA29: 0
A30: 2000 | B30: 4 | C30: Abril | D30: 200004 | E30: 2.07 | H30: 30 | I30: 0 | R30: 30 | S30: 200004 | T30: 2.07 | AA30: 0
A31: 2000 | B31: 5 | C31: Mayo | D31: 200005 | E31: 2.15 | H31: 31 | I31: 0 | R31: 31 | S31: 200005 | T31: 2.15 | AA31: 0
A32: 2000 | B32: 6 | C32: Junio | D32: 200006 | E32: 2 | H32: 32 | I32: 0 | R32: 32 | S32: 200006 | T32: 2 | AA32: 0
A33: 2000 | B33: 7 | C33: Julio | D33: 200007 | E33: 2.43 | H33: 33 | I33: 0 | R33: 33 | S33: 200007 | T33: 2.43 | AA33: 0
A34: 2000 | B34: 8 | C34: Agosto | D34: 200008 | E34: 2.39 | H34: 34 | I34: 0 | R34: 34 | S34: 200008 | T34: 2.39 | AA34: 0
A35: 2000 | B35: 9 | C35: =VLOOKUP(B35,Meses,2) -> Septiembre | D35: 200009 | E35: 2.31 | H35: 35 | I35: =IF($N$2<$N$1,0,IF(I34=0,IF(D35=$N$1,E35,0),IF(D35>$N$2,0,E35))) -> 0 | R35: 35 | S35: 200009 | T35: 2.31 | AA35: 0
A36: 2000 | B36: 10 | C36: Octubre | D36: 200010 | E36: 2.3 | H36: 36 | I36: 0 | R36: 36 | S36: 200010 | T36: 2.3 | AA36: 0
A37: 2000 | B37: 11 | C37: Noviembre | D37: 200011 | E37: 2.06 | H37: 37 | I37: 0 | R37: 37 | S37: 200011 | T37: 2.06 | AA37: 0
A38: 2000 | B38: 12 | C38: Diciembre | D38: 200012 | E38: 2.22 | H38: 38 | I38: 0 | R38: 38 | S38: 200012 | T38: 2.22 | AA38: 0
A39: 2001 | B39: 1 | C39: Enero | D39: 200101 | E39: 2.22 | H39: 39 | I39: 0 | R39: 39 | S39: 200101 | T39: 2.22 | AA39: 0
A40: 2001 | B40: 2 | C40: Febrero | D40: 200102 | E40: 1.83 | H40: 40 | I40: 0 | R40: 40 | S40: 200102 | T40: 1.83 | AA40: 0
A41: 2001 | B41: 3 | C41: Marzo | D41: 200103 | E41: 2.66 | H41: 41 | I41: 0 | R41: 41 | S41: 200103 | T41: 2.66 | AA41: 0
A42: 2001 | B42: 4 | C42: Abril | D42: 200104 | E42: 3 | H42: 42 | I42: 0 | R42: 42 | S42: 200104 | T42: 3 | AA42: 0
A43: 2001 | B43: 5 | C43: Mayo | D43: 200105 | E43: 2.3 | H43: 43 | I43: 0 | R43: 43 | S43: 200105 | T43: 2.3 | AA43: 0
A44: 2001 | B44: 6 | C44: Junio | D44: 200106 | E44: 2.31 | H44: 44 | I44: 0 | R44: 44 | S44: 200106 | T44: 2.31 | AA44: 0
A45: 2001 | B45: 7 | C45: Julio | D45: 200107 | E45: 2.42 | H45: 45 | I45: 0 | R45: 45 | S45: 200107 | T45: 2.42 | AA45: 0
A46: 2001 | B46: 8 | C46: Agosto | D46: 200108 | E46: 2.1 | H46: 46 | I46: 0 | R46: 46 | S46: 200108 | T46: 2.1 | AA46: 0
A47: 2001 | B47: 9 | C47: Septiembre | D47: 200109 | E47: 2.78 | H47: 47 | I47: 0 | R47: 47 | S47: 200109 | T47: 2.78 | AA47: 0
A48: 2001 | B48: 10 | C48: Octubre | D48: 200110 | E48: 1.28 | H48: 48 | I48: 0 | R48: 48 | S48: 200110 | T48: 1.28 | AA48: 0
A49: 2001 | B49: 11 | C49: Noviembre | D49: 200111 | E49: 0.98 | H49: 49 | I49: 0 | R49: 49 | S49: 200111 | T49: 0.98 | AA49: 0
A50: 2001 | B50: 12 | C50: Diciembre | D50: 200112 | E50: 1.62 | H50: 50 | I50: 0 | R50: 50 | S50: 200112 | T50: 1.62 | AA50: 0
A51: 2002 | B51: 1 | C51: Enero | D51: 200201 | E51: 1.55 | H51: 51 | I51: 0 | R51: 51 | S51: 200201 | T51: 1.55 | AA51: 0
A52: 2002 | B52: 2 | C52: Febrero | D52: 200202 | E52: 1.79 | H52: 52 | I52: 0 | R52: 52 | S52: 200202 | T52: 1.79 | AA52: 0
A53: 2002 | B53: 3 | C53: Marzo | D53: 200203 | E53: 0.62 | H53: 53 | I53: 0 | R53: 53 | S53: 200203 | T53: 0.62 | AA53: 0
A54: 2002 | B54: 4 | C54: Abril | D54: 200204 | E54: 2.22 | H54: 54 | I54: 0 | R54: 54 | S54: 200204 | T54: 2.22 | AA54: 0
A55: 2002 | B55: 5 | C55: Mayo | D55: 200205 | E55: 1.29 | H55: 55 | I55: 0 | R55: 55 | S55: 200205 | T55: 1.29 | AA55: 0
A56: 2002 | B56: 6 | C56: Junio | D56: 200206 | E56: 1.04 | H56: 56 | I56: 0 | R56: 56 | S56: 200206 | T56: 1.04 | AA56: 0
A57: 2002 | B57: 7 | C57: Julio | D57: 200207 | E57: 1.67 | H57: 57 | I57: 0 | R57: 57 | S57: 200207 | T57: 1.67 | AA57: 0
A58: 2002 | B58: 8 | C58: Agosto | D58: 200208 | E58: 1.32 | H58: 58 | I58: 0 | R58: 58 | S58: 200208 | T58: 1.32 | AA58: 0
A59: 2002 | B59: 9 | C59: Septiembre | D59: 200209 | E59: 1.61 | H59: 59 | I59: 0 | R59: 59 | S59: 200209 | T59: 1.61 | AA59: 0
A60: 2002 | B60: 10 | C60: Octubre | D60: 200210 | E60: 1.38 | H60: 60 | I60: 0 | R60: 60 | S60: 200210 | T60: 1.38 | AA60: 0
A61: 2002 | B61: 11 | C61: Noviembre | D61: 200211 | E61: 1.14 | H61: 61 | I61: 0 | R61: 61 | S61: 200211 | T61: 1.14 | AA61: 0
A62: 2002 | B62: 12 | C62: Diciembre | D62: 200212 | E62: 1.43 | H62: 62 | I62: 0 | R62: 62 | S62: 200212 | T62: 1.43 | AA62: 0
A63: 2003 | B63: 1 | C63: Enero | D63: 200301 | E63: 2.01 | H63: 63 | I63: 0 | R63: 63 | S63: 200301 | T63: 2.01 | AA63: 0
A64: 2003 | B64: 2 | C64: Febrero | D64: 200302 | E64: 2.15 | H64: 64 | I64: 0 | R64: 64 | S64: 200302 | T64: 2.15 | AA64: 0
A65: 2003 | B65: 3 | C65: Marzo | D65: 200303 | E65: 1.94 | H65: 65 | I65: 0 | R65: 65 | S65: 200303 | T65: 1.94 | AA65: 0
A66: 2003 | B66: 4 | C66: Abril | D66: 200304 | E66: 2.07 | H66: 66 | I66: 0 | R66: 66 | S66: 200304 | T66: 2.07 | AA66: 0
A67: 2003 | B67: 5 | C67: =VLOOKUP(B67,Meses,2) -> Mayo | D67: 200305 | E67: 2.12 | H67: 67 | I67: =IF($N$2<$N$1,0,IF(I66=0,IF(D67=$N$1,E67,0),IF(D67>$N$2,0,E67))) -> 0 | R67: 67 | S67: 200305 | T67: 2.12 | AA67: 0
A68: 2003 | B68: 6 | C68: Junio | D68: =+CONCATENATE(TEXT(A68,0),RIGHT("00"&TEXT(B68,0),2)) -> 200306 | E68: 1.97 | H68: 68 | I68: 0 | R68: =H68 -> 68 | S68: =D68 -> 200306 | T68: =E68 -> 1.97 | AA68: =IF(AA67=0,IF(D68=$Y$1,E68,0),IF(D68>$Y$2,0,E68)) -> 0
A69: 2003 | B69: 7 | C69: Julio | D69: 200307 | E69: 1.76 | H69: =H68+1 -> 69 | I69: 0 | R69: 69 | S69: 200307 | T69: 1.76 | AA69: 0
A70: 2003 | B70: 8 | C70: Agosto | D70: 200308 | E70: 1.61 | H70: 70 | I70: 0 | R70: 70 | S70: 200308 | T70: 1.61 | AA70: 0
A71: 2003 | B71: 9 | C71: Septiembre | D71: 200309 | E71: 1.55 | H71: 71 | I71: 0 | R71: 71 | S71: 200309 | T71: 1.55 | AA71: 0
A72: 2003 | B72: 10 | C72: Octubre | D72: 200310 | E72: 1.52 | H72: 72 | I72: 0 | R72: 72 | S72: 200310 | T72: 1.52 | AA72: 0
A73: 2003 | B73: 11 | C73: Noviembre | D73: 200311 | E73: 1.52 | H73: 73 | I73: 0 | R73: 73 | S73: 200311 | T73: 1.52 | AA73: 0
A74: 2003 | B74: 12 | C74: Diciembre | D74: 200312 | E74: 1.49 | H74: 74 | I74: 0 | R74: 74 | S74: 200312 | T74: 1.49 | AA74: 0
A75: 2004 | B75: 1 | C75: Enero | D75: 200401 | E75: 1.13 | H75: 75 | I75: 0 | R75: 75 | S75: 200401 | T75: 1.13 | AA75: 0
A76: 2004 | B76: 2 | C76: Febrero | D76: 200402 | E76: 1.13 | H76: 76 | I76: 0 | R76: 76 | S76: 200402 | T76: 1.13 | AA76: 0
A77: 2004 | B77: 3 | C77: Marzo | D77: 200403 | E77: 1.13 | H77: 77 | I77: 0 | R77: 77 | S77: 200403 | T77: 1.13 | AA77: 0
A78: 2004 | B78: 4 | C78: Abril | D78: 200404 | E78: 1.13 | H78: 78 | I78: 0 | R78: 78 | S78: 200404 | T78: 1.13 | AA78: 0
A79: 2004 | B79: 5 | C79: Mayo | D79: 200405 | E79: 1.13 | H79: 79 | I79: 0 | R79: 79 | S79: 200405 | T79: 1.13 | AA79: 0
A80: 2004 | B80: 6 | C80: Junio | D80: 200406 | E80: 1.13 | H80: 80 | I80: 0 | R80: 80 | S80: 200406 | T80: 1.13 | AA80: 0
A81: 2004 | B81: 7 | C81: Julio | D81: 200407 | E81: 1.13 | H81: 81 | I81: 0 | R81: 81 | S81: 200407 | T81: 1.13 | AA81: 0
A82: 2004 | B82: 8 | C82: Agosto | D82: 200408 | E82: 1.13 | H82: 82 | I82: 0 | R82: 82 | S82: 200408 | T82: 1.13 | AA82: 0
A83: 2004 | B83: 9 | C83: Septiembre | D83: 200409 | E83: 1.13 | H83: 83 | I83: 0 | R83: 83 | S83: 200409 | T83: 1.13 | AA83: 0
A84: 2004 | B84: 10 | C84: Octubre | D84: 200410 | E84: 1.13 | H84: 84 | I84: 0 | R84: 84 | S84: 200410 | T84: 1.13 | AA84: 0
A85: 2004 | B85: 11 | C85: Noviembre | D85: 200411 | E85: 1.13 | H85: 85 | I85: 0 | R85: 85 | S85: 200411 | T85: 1.13 | AA85: 0
A86: 2004 | B86: 12 | C86: Diciembre | D86: 200412 | E86: 1.13 | H86: 86 | I86: 0 | R86: 86 | S86: 200412 | T86: 1.13 | AA86: 0
A87: 2005 | B87: 1 | C87: Enero | D87: 200501 | E87: 1.13 | H87: 87 | I87: 0 | R87: 87 | S87: 200501 | T87: 1.13 | AA87: 0
A88: 2005 | B88: 2 | C88: Febrero | D88: 200502 | E88: 1.13 | H88: 88 | I88: 0 | R88: 88 | S88: 200502 | T88: 1.13 | AA88: 0
A89: 2005 | B89: 3 | C89: Marzo | D89: 200503 | E89: 1.13 | H89: 89 | I89: 0 | R89: 89 | S89: 200503 | T89: 1.13 | AA89: 0
A90: 2005 | B90: 4 | C90: Abril | D90: 200504 | E90: 1.13 | H90: 90 | I90: 0 | R90: 90 | S90: 200504 | T90: 1.13 | AA90: 0
A91: 2005 | B91: 5 | C91: Mayo | D91: 200505 | E91: 1.13 | H91: 91 | I91: 0 | R91: 91 | S91: 200505 | T91: 1.13 | AA91: 0
A92: 2005 | B92: 6 | C92: Junio | D92: 200506 | E92: 1.13 | H92: 92 | I92: 0 | J92: =IF(E92>0,IF(E93=0,B92,0),0) -> 0 | K92: =IF(J92=0,0,A92) -> 0 | R92: 92 | S92: 200506 | T92: 1.13 | AA92: 0
A93: 2005 | B93: 7 | C93: Julio | D93: 200507 | E93: 1.13 | H93: 93 | I93: 0 | J93: 0 | K93: 0 | R93: 93 | S93: 200507 | T93: 1.13 | AA93: 0
A94: 2005 | B94: 8 | C94: Agosto | D94: 200508 | E94: 1.13 | H94: 94 | I94: 0 | J94: 0 | K94: 0 | R94: 94 | S94: 200508 | T94: 1.13 | AA94: 0
A95: 2005 | B95: 9 | C95: Septiembre | D95: 200509 | E95: 1.13 | F95: Regresa al Menú Anterior | H95: 95 | I95: 0 | J95: 0 | K95: 0 | R95: 95 | S95: 200509 | T95: 1.13 | AA95: 0
A96: 2005 | B96: 10 | C96: Octubre | D96: 200510 | E96: 1.13 | H96: 96 | I96: 0 | J96: 0 | K96: 0 | R96: 96 | S96: 200510 | T96: 1.13 | AA96: 0
A97: 2005 | B97: 11 | C97: Noviembre | D97: 200511 | E97: 1.13 | H97: 97 | I97: 0 | J97: 0 | K97: 0 | R97: 97 | S97: 200511 | T97: 1.13 | AA97: 0
A98: 2005 | B98: 12 | C98: Diciembre | D98: 200512 | E98: 1.13 | H98: 98 | I98: 0 | J98: 0 | K98: 0 | R98: 98 | S98: 200512 | T98: 1.13 | AA98: 0
A99: 2006 | B99: 1 | C99: =VLOOKUP(B99,Meses,2) -> Enero | D99: 200601 | E99: 1.13 | H99: 99 | I99: =IF($N$2<$N$1,0,IF(I98=0,IF(D99=$N$1,E99,0),IF(D99>$N$2,0,E99))) -> 0 | J99: 0 | K99: 0 | R99: 99 | S99: 200601 | T99: 1.13 | AA99: 0
A100: 2006 | B100: 2 | C100: Febrero | D100: 200602 | E100: 1.13 | H100: 100 | I100: 0 | J100: 0 | K100: 0 | R100: 100 | S100: 200602 | T100: 1.13 | AA100: 0
A101: 2006 | B101: 3 | C101: Marzo | D101: 200603 | E101: 1.13 | H101: 101 | I101: 0 | J101: 0 | K101: 0 | R101: 101 | S101: 200603 | T101: 1.13 | AA101: 0
A102: 2006 | B102: 4 | C102: Abril | D102: 200604 | E102: 1.13 | H102: 102 | I102: 0 | J102: 0 | K102: 0 | R102: 102 | S102: 200604 | T102: 1.13 | AA102: 0
A103: 2006 | B103: 5 | C103: Mayo | D103: 200605 | E103: 1.13 | H103: 103 | I103: 0 | J103: =IF(E103>0,IF(E104=0,B103,0),0) -> 0 | K103: 0 | R103: 103 | S103: 200605 | T103: 1.13 | AA103: 0
A104: 2006 | B104: 6 | C104: Junio | D104: 200606 | E104: 1.13 | H104: 104 | I104: 0 | J104: 0 | K104: 0 | R104: 104 | S104: 200606 | T104: 1.13 | AA104: 0
A105: 2006 | B105: 7 | C105: Julio | D105: 200607 | E105: 1.13 | H105: 105 | I105: 0 | J105: 0 | K105: 0 | R105: 105 | S105: 200607 | T105: 1.13 | AA105: 0
A106: 2006 | B106: 8 | C106: Agosto | D106: 200608 | E106: 1.13 | H106: 106 | I106: 0 | J106: 0 | K106: 0 | R106: 106 | S106: 200608 | T106: 1.13 | AA106: 0
A107: 2006 | B107: 9 | C107: Septiembre | D107: 200609 | E107: 1.13 | H107: 107 | I107: 0 | J107: 0 | K107: 0 | R107: 107 | S107: 200609 | T107: 1.13 | AA107: 0
A108: 2006 | B108: 10 | C108: Octubre | D108: 200610 | E108: 1.13 | H108: 108 | I108: 0 | J108: 0 | K108: 0 | R108: 108 | S108: 200610 | T108: 1.13 | AA108: 0
A109: 2006 | B109: 11 | C109: Noviembre | D109: 200611 | E109: 1.13 | H109: 109 | I109: 0 | J109: 0 | K109: 0 | R109: 109 | S109: 200611 | T109: 1.13 | AA109: 0
A110: 2006 | B110: 12 | C110: Diciembre | D110: 200612 | E110: 1.13 | H110: 110 | I110: 0 | J110: 0 | K110: 0 | R110: 110 | S110: 200612 | T110: 1.13 | AA110: 0
A111: 2007 | B111: 1 | C111: Enero | D111: 200701 | E111: 1.13 | H111: 111 | I111: 0 | J111: 0 | K111: 0 | R111: 111 | S111: 200701 | T111: 1.13 | AA111: 0
A112: =A111 -> 2007 | B112: 2 | C112: Febrero | D112: 200702 | E112: 1.13 | H112: 112 | I112: 0 | J112: 0 | K112: 0 | R112: 112 | S112: 200702 | T112: 1.13 | AA112: 0
A113: =A112 -> 2007 | B113: 3 | C113: Marzo | D113: 200703 | E113: 1.13 | H113: 113 | I113: 0 | J113: 0 | K113: 0 | R113: 113 | S113: 200703 | T113: 1.13 | AA113: 0
A114: 2007 | B114: 4 | C114: Abril | D114: 200704 | E114: 1.13 | H114: 114 | I114: 0 | J114: 0 | K114: 0 | R114: 114 | S114: 200704 | T114: 1.13 | AA114: 0
A115: 2007 | B115: 5 | C115: Mayo | D115: 200705 | E115: 1.13 | H115: 115 | I115: 0 | J115: 0 | K115: 0 | R115: 115 | S115: 200705 | T115: 1.13 | AA115: 0
A116: 2007 | B116: 6 | C116: Junio | D116: 200706 | E116: 1.13 | H116: 116 | I116: 0 | J116: 0 | K116: 0 | R116: 116 | S116: 200706 | T116: 1.13 | AA116: 0
A117: 2007 | B117: 7 | C117: Julio | D117: 200707 | E117: 1.13 | F117: Regresa al Menú Anterior | H117: 117 | I117: 0 | J117: 0 | K117: 0 | R117: 117 | S117: 200707 | T117: 1.13 | AA117: 0
A118: 2007 | B118: 8 | C118: Agosto | D118: 200708 | E118: 1.13 | H118: 118 | I118: 0 | J118: 0 | K118: 0 | R118: 118 | S118: 200708 | T118: 1.13 | AA118: 0
A119: 2007 | B119: 9 | C119: Septiembre | D119: 200709 | E119: 1.13 | H119: 119 | I119: 0 | J119: 0 | K119: 0 | R119: 119 | S119: 200709 | T119: 1.13 | AA119: 0
A120: 2007 | B120: 10 | C120: Octubre | D120: 200710 | E120: 1.13 | H120: 120 | I120: 0 | J120: 0 | K120: 0 | R120: 120 | S120: 200710 | T120: 1.13 | AA120: 0
A121: 2007 | B121: 11 | C121: Noviembre | D121: 200711 | E121: 1.13 | H121: 121 | I121: 0 | J121: 0 | K121: 0 | R121: 121 | S121: 200711 | T121: 1.13 | AA121: 0
A122: 2007 | B122: 12 | C122: Diciembre | D122: 200712 | E122: 1.13 | H122: 122 | I122: 0 | J122: 0 | K122: 0 | R122: 122 | S122: 200712 | T122: 1.13 | AA122: 0
A123: 2008 | B123: 1 | C123: Enero | D123: 200801 | E123: 1.13 | H123: 123 | I123: 0 | J123: 0 | K123: 0 | R123: 123 | S123: 200801 | T123: 1.13 | AA123: 0
A124: 2008 | B124: 2 | C124: Febrero | D124: 200802 | E124: 1.13 | H124: 124 | I124: 0 | J124: 0 | K124: =IF(J124=0,0,A124) -> 0 | R124: 124 | S124: 200802 | T124: 1.13 | AA124: 0
A125: 2008 | B125: 3 | C125: Marzo | D125: 200803 | E125: 1.13 | H125: 125 | I125: 0 | J125: 0 | K125: 0 | R125: 125 | S125: 200803 | T125: 1.13 | AA125: 0
A126: 2008 | B126: 4 | C126: Abril | D126: 200804 | E126: 1.13 | H126: 126 | I126: 0 | J126: 0 | K126: 0 | R126: 126 | S126: 200804 | T126: 1.13 | AA126: 0
A127: 2008 | B127: 5 | C127: Mayo | D127: 200805 | E127: 1.13 | H127: 127 | I127: 0 | J127: 0 | K127: 0 | R127: 127 | S127: 200805 | T127: 1.13 | AA127: 0
A128: 2008 | B128: 6 | C128: Junio | D128: 200806 | E128: 1.13 | H128: 128 | I128: 0 | J128: 0 | K128: 0 | R128: 128 | S128: 200806 | T128: 1.13 | AA128: 0
A129: 2008 | B129: 7 | C129: Julio | D129: 200807 | E129: 1.13 | H129: 129 | I129: 0 | J129: 0 | K129: 0 | R129: 129 | S129: 200807 | T129: 1.13 | AA129: 0
A130: 2008 | B130: 8 | C130: Agosto | D130: 200808 | E130: 1.13 | H130: 130 | I130: 0 | J130: 0 | K130: 0 | R130: 130 | S130: 200808 | T130: 1.13 | AA130: 0
A131: 2008 | B131: 9 | C131: =VLOOKUP(B131,Meses,2) -> Septiembre | D131: 200809 | E131: 1.13 | H131: 131 | I131: =IF($N$2<$N$1,0,IF(I130=0,IF(D131=$N$1,E131,0),IF(D131>$N$2,0,E131))) -> 0 | J131: 0 | K131: 0 | R131: 131 | S131: 200809 | T131: 1.13 | AA131: 0
A132: 2008 | B132: 10 | C132: Octubre | D132: =+CONCATENATE(TEXT(A132,0),RIGHT("00"&TEXT(B132,0),2)) -> 200810 | E132: 1.13 | H132: 132 | I132: 0 | J132: 0 | K132: 0 | R132: =H132 -> 132 | S132: =D132 -> 200810 | T132: =E132 -> 1.13 | AA132: =IF(AA131=0,IF(D132=$Y$1,E132,0),IF(D132>$Y$2,0,E132)) -> 0
A133: 2008 | B133: 11 | C133: Noviembre | D133: 200811 | E133: 1.13 | H133: =H132+1 -> 133 | I133: 0 | J133: 0 | K133: 0 | R133: 133 | S133: 200811 | T133: 1.13 | AA133: 0
A134: 2008 | B134: 12 | C134: Diciembre | D134: 200812 | E134: 1.13 | H134: 134 | I134: 0 | J134: 0 | K134: 0 | R134: 134 | S134: 200812 | T134: 1.13 | AA134: 0
A135: 2009 | B135: 1 | C135: Enero | D135: 200901 | E135: 1.13 | F135: Regresa al Menú Anterior | H135: 135 | I135: 0 | J135: 0 | K135: 0 | R135: 135 | S135: 200901 | T135: 1.13 | AA135: 0
A136: 2009 | B136: 2 | C136: Febrero | D136: 200902 | E136: 1.13 | H136: 136 | I136: 0 | J136: 0 | K136: 0 | R136: 136 | S136: 200902 | T136: 1.13 | AA136: 0
A137: 2009 | B137: 3 | C137: Marzo | D137: 200903 | E137: 1.13 | H137: 137 | I137: 0 | J137: 0 | K137: 0 | R137: 137 | S137: 200903 | T137: 1.13 | AA137: 0
A138: 2009 | B138: 4 | C138: Abril | D138: 200904 | E138: 1.13 | H138: 138 | I138: 0 | J138: 0 | K138: 0 | R138: 138 | S138: 200904 | T138: 1.13 | AA138: 0
A139: 2009 | B139: 5 | C139: Mayo | D139: 200905 | E139: 1.13 | H139: 139 | I139: 0 | J139: 0 | K139: 0 | R139: 139 | S139: 200905 | T139: 1.13 | AA139: 0
A140: 2009 | B140: 6 | C140: Junio | D140: 200906 | E140: 1.13 | H140: 140 | I140: 0 | J140: 0 | K140: 0 | R140: 140 | S140: 200906 | T140: 1.13 | AA140: 0
A141: 2009 | B141: 7 | C141: Julio | D141: 200907 | E141: 1.13 | H141: 141 | I141: 0 | J141: 0 | K141: 0 | R141: 141 | S141: 200907 | T141: 1.13 | AA141: 0
A142: 2009 | B142: 8 | C142: Agosto | D142: 200908 | E142: 1.13 | H142: 142 | I142: 0 | J142: 0 | K142: 0 | R142: 142 | S142: 200908 | T142: 1.13 | AA142: 0
A143: 2009 | B143: 9 | C143: Septiembre | D143: 200909 | E143: 1.13 | H143: 143 | I143: 0 | J143: 0 | K143: 0 | R143: 143 | S143: 200909 | T143: 1.13 | AA143: 0
A144: 2009 | B144: 10 | C144: Octubre | D144: 200910 | E144: 1.13 | H144: 144 | I144: 0 | J144: 0 | K144: 0 | R144: 144 | S144: 200910 | T144: 1.13 | AA144: 0
A145: 2009 | B145: 11 | C145: Noviembre | D145: 200911 | E145: 1.13 | H145: 145 | I145: 0 | J145: 0 | K145: 0 | R145: 145 | S145: 200911 | T145: 1.13 | AA145: 0
A146: 2009 | B146: 12 | C146: Diciembre | D146: 200912 | E146: 1.13 | H146: 146 | I146: 0 | J146: 0 | K146: 0 | R146: 146 | S146: 200912 | T146: 1.13 | AA146: 0
A147: 2010 | B147: 1 | C147: =VLOOKUP(B147,Meses,2) -> Enero | D147: =+CONCATENATE(TEXT(A147,0),RIGHT("00"&TEXT(B147,0),2)) -> 201001 | E147: 1.13 | H147: 147 | I147: =IF($N$2<$N$1,0,IF(I146=0,IF(D147=$N$1,E147,0),IF(D147>$N$2,0,E147))) -> 0 | J147: =IF(E147>0,IF(E148=0,B147,0),0) -> 0 | K147: =IF(J147=0,0,A147) -> 0 | R147: =H147 -> 147 | S147: =D147 -> 201001 | T147: =E147 -> 1.13 | AA147: =IF(AA146=0,IF(D147=$Y$1,E147,0),IF(D147>$Y$2,0,E147)) -> 0
A148: 2010 | B148: 2 | C148: Febrero | D148: 201002 | E148: 1.13 | H148: 148 | I148: 0 | J148: 0 | K148: 0 | R148: 148 | S148: 201002 | T148: 1.13 | AA148: 0
A149: 2010 | B149: 3 | C149: Marzo | D149: 201003 | E149: 1.13 | H149: 149 | I149: 0 | J149: 0 | K149: 0 | R149: 149 | S149: 201003 | T149: 1.13 | AA149: 0
A150: 2010 | B150: 4 | C150: Abril | D150: 201004 | E150: 1.13 | H150: 150 | I150: 0 | J150: 0 | K150: 0 | R150: 150 | S150: 201004 | T150: 1.13 | AA150: 0
A151: 2010 | B151: 5 | C151: Mayo | D151: 201005 | E151: 1.13 | H151: 151 | I151: 0 | J151: 0 | K151: 0 | R151: 151 | S151: 201005 | T151: 1.13 | AA151: 0
A152: 2010 | B152: 6 | C152: Junio | D152: 201006 | E152: 1.13 | H152: 152 | I152: 0 | J152: 0 | K152: 0 | R152: 152 | S152: 201006 | T152: 1.13 | AA152: 0
A153: 2010 | B153: 7 | C153: Julio | D153: 201007 | E153: 1.13 | H153: 153 | I153: 0 | J153: 0 | K153: 0 | R153: 153 | S153: 201007 | T153: 1.13 | AA153: 0
A154: 2010 | B154: 8 | C154: Agosto | D154: 201008 | E154: 1.13 | H154: 154 | I154: 0 | J154: 0 | K154: 0 | R154: 154 | S154: 201008 | T154: 1.13 | AA154: 0
A155: 2010 | B155: 9 | C155: Septiembre | D155: 201009 | E155: 1.13 | H155: 155 | I155: 0 | J155: 0 | K155: 0 | R155: 155 | S155: 201009 | T155: 1.13 | AA155: 0
A156: 2010 | B156: 10 | C156: Octubre | D156: 201010 | E156: 1.13 | H156: 156 | I156: 0 | J156: 0 | K156: 0 | R156: 156 | S156: 201010 | T156: 1.13 | AA156: 0
A157: 2010 | B157: 11 | C157: Noviembre | D157: 201011 | E157: 1.13 | H157: 157 | I157: 0 | J157: 0 | K157: 0 | R157: 157 | S157: 201011 | T157: 1.13 | AA157: 0
A158: 2010 | B158: 12 | C158: Diciembre | D158: 201012 | E158: 1.13 | F158: Regresa al Menú Anterior | H158: 158 | I158: 0 | J158: 0 | K158: 0 | R158: 158 | S158: 201012 | T158: 1.13 | AA158: 0
A159: 2011 | B159: 1 | C159: Enero | D159: 201101 | E159: 1.13 | H159: 159 | I159: 0 | J159: 0 | K159: 0 | R159: 159 | S159: 201101 | T159: 1.13 | AA159: 0
A160: 2011 | B160: 2 | C160: Febrero | D160: 201102 | E160: 1.13 | H160: 160 | I160: 0 | J160: 0 | K160: 0 | R160: 160 | S160: 201102 | T160: 1.13 | AA160: 0
A161: 2011 | B161: 3 | C161: Marzo | D161: 201103 | E161: 1.13 | H161: 161 | I161: 0 | J161: 0 | K161: 0 | R161: 161 | S161: 201103 | T161: 1.13 | AA161: 0
A162: 2011 | B162: 4 | C162: Abril | D162: 201104 | E162: 1.13 | H162: 162 | I162: 0 | J162: 0 | K162: 0 | R162: 162 | S162: 201104 | T162: 1.13 | AA162: 0
A163: 2011 | B163: 5 | C163: Mayo | D163: 201105 | E163: 1.13 | H163: 163 | I163: 0 | J163: 0 | K163: 0 | R163: 163 | S163: 201105 | T163: 1.13 | AA163: 0
A164: 2011 | B164: 6 | C164: Junio | D164: 201106 | E164: 1.13 | H164: 164 | I164: 0 | J164: 0 | K164: 0 | R164: 164 | S164: 201106 | T164: 1.13 | AA164: 0
A165: 2011 | B165: 7 | C165: Julio | D165: 201107 | E165: 1.13 | H165: 165 | I165: 0 | J165: 0 | K165: 0 | R165: 165 | S165: 201107 | T165: 1.13 | AA165: 0
A166: 2011 | B166: 8 | C166: Agosto | D166: 201108 | E166: 1.13 | H166: 166 | I166: 0 | J166: 0 | K166: 0 | R166: 166 | S166: 201108 | T166: 1.13 | AA166: 0
A167: 2011 | B167: 9 | C167: Septiembre | D167: 201109 | E167: 1.13 | H167: 167 | I167: 0 | J167: 0 | K167: 0 | R167: 167 | S167: 201109 | T167: 1.13 | AA167: 0
A168: 2011 | B168: 10 | C168: Octubre | D168: 201110 | E168: 1.13 | H168: 168 | I168: 0 | J168: 0 | K168: 0 | R168: 168 | S168: 201110 | T168: 1.13 | AA168: 0
A169: 2011 | B169: 11 | C169: Noviembre | D169: 201111 | E169: 1.13 | H169: 169 | I169: 0 | J169: 0 | K169: 0 | R169: 169 | S169: 201111 | T169: 1.13 | AA169: 0
A170: 2011 | B170: 12 | C170: Diciembre | D170: 201112 | E170: 1.13 | H170: 170 | I170: 0 | J170: 0 | K170: 0 | R170: 170 | S170: 201112 | T170: 1.13 | AA170: 0
A171: 2012 | B171: 1 | C171: Enero | D171: 201201 | E171: 1.13 | H171: 171 | I171: 0 | J171: 0 | K171: 0 | R171: 171 | S171: 201201 | T171: 1.13 | AA171: 0
A172: 2012 | B172: 2 | C172: Febrero | D172: 201202 | E172: 1.13 | H172: 172 | I172: 0 | J172: 0 | K172: 0 | R172: 172 | S172: 201202 | T172: 1.13 | AA172: 0
A173: 2012 | B173: 3 | C173: Marzo | D173: 201203 | E173: 1.13 | H173: 173 | I173: 0 | J173: 0 | K173: 0 | R173: 173 | S173: 201203 | T173: 1.13 | AA173: 0
A174: 2012 | B174: 4 | C174: Abril | D174: 201204 | E174: 1.13 | H174: 174 | I174: 0 | J174: 0 | K174: 0 | R174: 174 | S174: 201204 | T174: 1.13 | AA174: 0
A175: 2012 | B175: 5 | C175: Mayo | D175: 201205 | E175: 1.13 | H175: 175 | I175: 0 | J175: 0 | K175: 0 | R175: 175 | S175: 201205 | T175: 1.13 | AA175: 0
A176: 2012 | B176: 6 | C176: Junio | D176: 201206 | E176: 1.13 | H176: 176 | I176: 0 | J176: 0 | K176: 0 | R176: 176 | S176: 201206 | T176: 1.13 | AA176: 0
A177: =A176 -> 2012 | B177: 7 | C177: Julio | D177: 201207 | E177: 1.13 | H177: 177 | I177: 0 | J177: 0 | K177: 0 | R177: 177 | S177: 201207 | T177: 1.13 | AA177: 0
A178: 2012 | B178: 8 | C178: Agosto | D178: 201208 | E178: 1.13 | H178: 178 | I178: 0 | J178: 0 | K178: 0 | R178: 178 | S178: 201208 | T178: 1.13 | AA178: 0
A179: 2012 | B179: 9 | C179: Septiembre | D179: 201209 | E179: 1.13 | H179: 179 | I179: 0 | J179: 0 | K179: 0 | R179: 179 | S179: 201209 | T179: 1.13 | AA179: 0
A180: 2012 | B180: 10 | C180: Octubre | D180: 201210 | E180: 1.13 | F180: Regresa al Menú Anterior | H180: 180 | I180: 0 | J180: 0 | K180: 0 | R180: 180 | S180: 201210 | T180: 1.13 | AA180: 0
A181: 2012 | B181: 11 | C181: Noviembre | D181: 201211 | E181: 1.13 | H181: 181 | I181: 0 | J181: 0 | K181: 0 | R181: 181 | S181: 201211 | T181: 1.13 | AA181: 0
A182: 2012 | B182: 12 | C182: Diciembre | D182: 201212 | E182: 1.13 | H182: 182 | I182: 0 | J182: 0 | K182: 0 | R182: 182 | S182: 201212 | T182: 1.13 | AA182: 0
A183: 2013 | B183: 1 | C183: Enero | D183: 201301 | E183: 1.13 | H183: 183 | I183: 1.13 | J183: 0 | K183: 0 | R183: 183 | S183: 201301 | T183: 1.13 | AA183: 0
A184: =A183 -> 2013 | B184: 2 | C184: Febrero | D184: 201302 | E184: 1.13 | H184: 184 | I184: 1.13 | J184: 0 | K184: 0 | R184: 184 | S184: 201302 | T184: 1.13 | AA184: 0
A185: 2013 | B185: 3 | C185: Marzo | D185: 201303 | E185: 1.13 | H185: 185 | I185: 1.13 | J185: 0 | K185: 0 | R185: 185 | S185: 201303 | T185: 1.13 | AA185: 1.13
A186: 2013 | B186: 4 | C186: Abril | D186: 201304 | E186: 1.13 | H186: 186 | I186: 1.13 | J186: 0 | K186: 0 | R186: 186 | S186: 201304 | T186: 1.13 | AA186: 1.13
A187: 2013 | B187: 5 | C187: Mayo | D187: 201305 | E187: 1.13 | H187: 187 | I187: 0 | J187: 0 | K187: 0 | R187: 187 | S187: 201305 | T187: 1.13 | AA187: 1.13
A188: 2013 | B188: 6 | C188: Junio | D188: 201306 | E188: 1.13 | H188: 188 | I188: 0 | J188: 0 | K188: 0 | R188: 188 | S188: 201306 | T188: 1.13 | AA188: 1.13
A189: 2013 | B189: 7 | C189: Julio | D189: 201307 | E189: 1.13 | H189: 189 | I189: 0 | J189: 0 | K189: 0 | R189: 189 | S189: 201307 | T189: 1.13 | AA189: 1.13
A190: 2013 | B190: 8 | C190: Agosto | D190: 201308 | E190: 1.13 | H190: 190 | I190: 0 | J190: 0 | K190: 0 | R190: 190 | S190: 201308 | T190: 1.13 | AA190: 1.13
A191: 2013 | B191: 9 | C191: Septiembre | D191: 201309 | E191: 1.13 | H191: 191 | I191: 0 | J191: 0 | K191: 0 | R191: 191 | S191: 201309 | T191: 1.13 | AA191: 1.13
A192: 2013 | B192: 10 | C192: Octubre | D192: 201310 | E192: 1.13 | H192: 192 | I192: 0 | J192: 0 | K192: 0 | R192: 192 | S192: 201310 | T192: 1.13 | AA192: 1.13
A193: 2013 | B193: 11 | C193: Noviembre | D193: 201311 | E193: 1.13 | H193: 193 | I193: 0 | J193: 0 | K193: 0 | R193: 193 | S193: 201311 | T193: 1.13 | AA193: 1.13
A194: 2013 | B194: 12 | C194: Diciembre | D194: 201312 | E194: 1.13 | H194: 194 | I194: 0 | J194: 0 | K194: 0 | R194: 194 | S194: 201312 | T194: 1.13 | AA194: 1.13
A195: 2014 | B195: 1 | C195: =VLOOKUP(B195,Meses,2) -> Enero | D195: =+CONCATENATE(TEXT(A195,0),RIGHT("00"&TEXT(B195,0),2)) -> 201401 | E195: 1.13 | H195: 195 | I195: =IF($N$2<$N$1,0,IF(I194=0,IF(D195=$N$1,E195,0),IF(D195>$N$2,0,E195))) -> 0 | J195: =IF(E195>0,IF(E196=0,B195,0),0) -> 0 | K195: =IF(J195=0,0,A195) -> 0 | R195: =H195 -> 195 | S195: =D195 -> 201401 | T195: =E195 -> 1.13 | AA195: 1.13
A196: =A195 -> 2014 | B196: 2 | C196: Febrero | D196: 201402 | E196: 1.13 | H196: 196 | I196: 0 | J196: 0 | K196: 0 | R196: 196 | S196: 201402 | T196: 1.13 | AA196: 0
A197: 2014 | B197: 3 | C197: Marzo | D197: 201403 | E197: 1.13 | H197: =H196+1 -> 197 | I197: 0 | J197: 0 | K197: 0 | R197: 197 | S197: 201403 | T197: 1.13 | AA197: 0
A198: 2014 | B198: 4 | C198: Abril | D198: 201404 | E198: 1.13 | H198: 198 | I198: 0 | J198: 0 | K198: 0 | R198: 198 | S198: 201404 | T198: 1.13 | AA198: 0
A199: 2014 | B199: 5 | C199: Mayo | D199: 201405 | E199: 1.13 | H199: 199 | I199: 0 | J199: 0 | K199: 0 | R199: 199 | S199: 201405 | T199: 1.13 | AA199: 0
A200: 2014 | B200: 6 | C200: Junio | D200: 201406 | E200: 1.13 | H200: 200 | I200: 0 | J200: 0 | K200: 0 | R200: 200 | S200: 201406 | T200: 1.13 | AA200: 0
... 20 more rows

Sheet Efectua_Calculo
B1: ACTUALIZACIÓN
B3: PAGOS Y ENTEROS PROVISIONALES
B5: Se debió de haber pagado en el mes | E5: =Calcular!I12 -> 1 | G5: INPC mas antiguo | J5: =VLOOKUP(I6,INPC,I7+1) -> 107.246 | M5: =CONCATENATE("17/",RIGHT("00"&TEXT(E5,0),2),"/",TEXT(E6,0)) -> 17/01/2013 | N5: =DATEVALUE(M5) -> 41291
B6: Del año | E6: =Calcular!I13 -> 2013 | G6: Año base | I6: =IF(E5=1,E6-1,E6) -> 2012 | M6: =CONCATENATE(RIGHT("00"&TEXT(E8,0),2),"/",RIGHT("00"&TEXT(E9,0),2),"/",TEXT(E10,0)) -> 15/05/2013 | N6: =DATEVALUE(M6) -> 41409
G7: Mes base | I7: =IF(E5=1,12,E5-1) -> 12
B8: Se pagara el día | E8: =Calcular!I17 -> 15 | N8: =N6-N5 -> 118
B9: Del mes | E9: =Calcular!I18 -> 5 | G9: INPC mas reciente | J9: =IF(N8<32,J5,VLOOKUP(I10,INPC,I11+1)) -> 109.074
B10: Del año | E10: =Calcular!I19 -> 2013 | G10: Año Base | I10: =IF(N8<32,I6,IF(E8>9,IF(E9=1,E10-1,E10),IF(E9<3,E10-1,E10))) -> 2013
G11: Mes Base: | I11: =IF(N8<32,I7,IF(E8>9,IF(E9=1,12,E9-1),IF(E9=1,11,IF(E9=2,12,E9-2)))) -> 4
G14: Factor de actualización | J14: =IF(J5>J9,1,ROUND(INT(ABS((J9/J5)*10000))/10000,4)) -> 1.017
B18: PAGOS EN DECLARACIONES ANUALES
B20: Se debió de haber pagado en el mes | E20: =Ejercicio!I12 -> 2 | G20: INPC mas antiguo | J20: =VLOOKUP(I21,INPC,I22+1) -> 107.678
B21: Del año | E21: =Ejercicio!I13 -> 2013 | G21: Año base | I21: =IF(E20=1,E21-1,E21) -> 2013
G22: Mes base | I22: =E20-1 -> 1
B23: Se pagara el día | E23: =Ejercicio!I17 -> 19
B24: Del mes | E24: =Ejercicio!I18 -> 1 | G24: INPC mas reciente | J24: =IF(F32=F36,J20,VLOOKUP(I25,INPC,I26+1)) -> 111.508
B25: Del año | E25: =Ejercicio!I19 -> 2014 | G25: Año Base | I25: =IF(E23>9,IF(E24=1,E25-1,E25),IF(E24<3,E25-1,E25)) -> 2013
G26: Mes Base: | I26: =IF(E23>9,IF(E24=1,12,E24-1),IF(E24=1,11,IF(E24=2,12,E24-2))) -> 12
G29: Factor de actualización | J29: =IF(J20>J24,1,IF(J20=0,1,ROUND(INT(ABS((J24/J20)*10000))/10000,4))) -> 1.0355
E32: =CONCATENATE(TEXT(E21,0),RIGHT("00"&TEXT(E20,0),2)) -> 201302 | F32: =VLOOKUP(E32,Recargos,5) -> 184
E33: =CONCATENATE(TEXT(E25,0)&RIGHT("00"&TEXT(E24,0),2)) -> 201401 | F33: =VLOOKUP(E33,Recargos,5) -> 195
E34: =IF(E23<10,IF(E24=2,12,IF(E24=1,11,E24-1)),E24-1) -> 0
E35: =IF(E23<10,IF(E24>2,E25,E25-1),E25) -> 2014
E36: =CONCATENATE(TEXT(E35,0),RIGHT("00"&TEXT(E34,0),2)) -> 201400 | F36: =IF(E36<=E32,F32,VLOOKUP(E36,Recargos,5)) -> 194

Sheet Memoria de Calculo
A1: IMPUESTOS PROVISIONALES, DEFINITIVOS Y ENTERO DE RETENCIONES MENSALES | J1: 2013
G2: Regresa al menú Anterior
B4: CALCULO DEL FACTOR DE ACTUALIZACION
G7: INPC | I7: Factor
B9: Mes mas reciente: | D9: =VLOOKUP(Efectua_Calculo!I11,Meses,2) -> Abril | E9: =Efectua_Calculo!I10 -> 2013 | G9: =VLOOKUP(Efectua_Calculo!I10,INPC,Efectua_Calculo!I11+1) -> 109.074 | I9: =Efectua_Calculo!J14 -> 1.017
B10: Mes mas antiguo: | D10: =VLOOKUP(Efectua_Calculo!I7,Meses,2) -> Diciembre | E10: =Efectua_Calculo!I6 -> 2012 | G10: =VLOOKUP(Efectua_Calculo!I6,INPC,Efectua_Calculo!I7+1) -> 107.246
A12: (No se actualizan los importes por períodos menores a un mes (Art 17-A 1er. párrafo CFF)
B14: SUMA DE RECARGOS
M16: =Recargos!N1 -> 201301 | N16: =Recargos!N2 -> 201304 | P16: =IF(N16<M16,0,VLOOKUP(M16,Recargos,5)) -> 183 | Q16: =IF(P16=0,0,VLOOKUP(P16,Rec,2)) -> 201301 | R16: =IF(Q16=0,"-",VLOOKUP(VALUE(RIGHT(Q16,2)),Meses,2)&" de "&LEFT(Q16,4)) -> Enero de 2013 | S16: =IF(P16=0,0,VLOOKUP(P16,Rec,3)) -> 1.13
B17: =R16 -> Enero de 2013 | D17: =S16 -> 1.13 | G17: Total de Recargos | I17: =SUM(D17:D153)/100 -> 0.0452 | P17: =IF(P16=0,0,IF((P16+1)>$N$21,0,P16+1)) -> 184 | Q17: =IF(P17=0,0,VLOOKUP(P17,Rec,2)) -> 201302 | R17: =IF(Q17=0,"-",VLOOKUP(VALUE(RIGHT(Q17,2)),Meses,2)&" de "&LEFT(Q17,4)) -> Febrero de 2013 | S17: 1.13
B18: =R17 -> Febrero de 2013 | D18: =S17 -> 1.13 | M18: =RIGHT(M16,2) -> 01 | N18: =RIGHT(N16,2) -> 04 | P18: =IF(P17=0,0,IF((P17+1)>$N$21,0,P17+1)) -> 185 | Q18: =IF(P18=0,"-",VLOOKUP(P18,Rec,2)) -> 201303 | R18: =IF(Q18="-","-",VLOOKUP(VALUE(RIGHT(Q18,2)),Meses,2)&" de "&LEFT(Q18,4)) -> Marzo de 2013 | S18: 1.13
B19: Marzo de 2013 | D19: 1.13 | M19: =LEFT(M16,4) -> 2013 | N19: =LEFT(N16,4) -> 2013 | P19: 186 | Q19: 201304 | R19: Abril de 2013 | S19: 1.13
B20: Abril de 2013 | D20: 1.13 | P20: 0 | Q20: - | R20: - | S20: 0
B21: - | D21: 0 | N21: =IF(N16<M16,0,VLOOKUP(N16,Recargos,5)) -> 186 | P21: 0 | Q21: - | R21: - | S21: 0
B22: - | D22: 0 | P22: 0 | Q22: - | R22: - | S22: 0
B23: - | D23: 0 | P23: 0 | Q23: - | R23: - | S23: 0
B24: - | D24: 0 | P24: 0 | Q24: - | R24: - | S24: 0
B25: - | D25: 0 | P25: 0 | Q25: - | R25: - | S25: 0
B26: - | D26: 0 | P26: 0 | Q26: - | R26: - | S26: 0
B27: - | D27: 0 | P27: 0 | Q27: - | R27: - | S27: 0
B28: - | D28: 0 | P28: 0 | Q28: - | R28: - | S28: 0
B29: - | D29: 0 | P29: 0 | Q29: - | R29: - | S29: 0
B30: - | D30: 0 | P30: 0 | Q30: - | R30: - | S30: 0
B31: - | D31: 0 | P31: 0 | Q31: - | R31: - | S31: 0
B32: - | D32: 0 | P32: 0 | Q32: - | R32: - | S32: 0
B33: - | D33: 0 | P33: 0 | Q33: - | R33: - | S33: 0
B34: - | D34: 0 | P34: 0 | Q34: - | R34: - | S34: 0
B35: - | D35: 0 | P35: 0 | Q35: - | R35: - | S35: 0
B36: - | D36: 0 | P36: 0 | Q36: - | R36: - | S36: 0
B37: - | D37: 0 | P37: 0 | Q37: - | R37: - | S37: 0
B38: - | D38: 0 | P38: 0 | Q38: - | R38: - | S38: 0
B39: - | D39: 0 | P39: 0 | Q39: - | R39: - | S39: 0
B40: - | D40: 0 | P40: 0 | Q40: - | R40: - | S40: 0
B41: - | D41: 0 | P41: 0 | Q41: - | R41: - | S41: 0
B42: - | D42: 0 | P42: 0 | Q42: - | R42: - | S42: 0
B43: - | D43: 0 | P43: 0 | Q43: - | R43: - | S43: 0
B44: - | D44: 0 | P44: 0 | Q44: - | R44: - | S44: 0
B45: - | D45: 0 | P45: 0 | Q45: - | R45: - | S45: 0
B46: - | D46: 0 | P46: 0 | Q46: - | R46: - | S46: 0
B47: - | D47: 0 | P47: 0 | Q47: - | R47: - | S47: 0
B48: - | D48: 0 | P48: 0 | Q48: - | R48: - | S48: =IF(P48=0,0,VLOOKUP(P48,Rec,3)) -> 0
B49: - | D49: 0 | P49: 0 | Q49: - | R49: - | S49: 0
B50: - | D50: 0 | P50: 0 | Q50: =IF(P50=0,"-",VLOOKUP(P50,Rec,2)) -> - | R50: =IF(Q50="-","-",VLOOKUP(VALUE(RIGHT(Q50,2)),Meses,2)&" de "&LEFT(Q50,4)) -> - | S50: 0
B51: - | D51: 0 | P51: 0 | Q51: - | R51: - | S51: 0
B52: - | D52: 0 | P52: 0 | Q52: - | R52: - | S52: 0
B53: - | D53: 0 | P53: 0 | Q53: - | R53: - | S53: 0
B54: - | D54: 0 | P54: 0 | Q54: - | R54: - | S54: 0
B55: - | D55: 0 | P55: 0 | Q55: - | R55: - | S55: 0
B56: - | D56: 0 | P56: 0 | Q56: - | R56: - | S56: 0
B57: - | D57: 0 | P57: 0 | Q57: - | R57: - | S57: 0
B58: - | D58: 0 | P58: 0 | Q58: - | R58: - | S58: 0
B59: - | D59: 0 | P59: 0 | Q59: - | R59: - | S59: 0
B60: - | D60: 0 | P60: 0 | Q60: - | R60: - | S60: 0
B61: - | D61: 0 | P61: 0 | Q61: - | R61: - | S61: 0
B62: - | D62: 0 | P62: 0 | Q62: - | R62: - | S62: 0
B63: - | D63: 0 | P63: 0 | Q63: - | R63: - | S63: 0
B64: - | D64: 0 | P64: 0 | Q64: - | R64: - | S64: 0
B65: - | D65: 0 | P65: 0 | Q65: - | R65: - | S65: 0
B66: - | D66: 0 | P66: 0 | Q66: - | R66: - | S66: 0
B67: - | D67: 0 | P67: 0 | Q67: - | R67: - | S67: 0
B68: - | D68: 0 | P68: 0 | Q68: - | R68: - | S68: 0
B69: - | D69: 0 | P69: 0 | Q69: - | R69: - | S69: 0
B70: - | D70: 0 | P70: 0 | Q70: - | R70: - | S70: 0
B71: - | D71: 0 | P71: 0 | Q71: - | R71: - | S71: 0
B72: - | D72: 0 | P72: 0 | Q72: - | R72: - | S72: 0
B73: - | D73: 0 | P73: 0 | Q73: - | R73: - | S73: 0
B74: - | D74: 0 | P74: 0 | Q74: - | R74: - | S74: 0
B75: - | D75: 0 | P75: 0 | Q75: - | R75: - | S75: 0
B76: - | D76: 0 | P76: 0 | Q76: - | R76: - | S76: 0
B77: - | D77: 0 | P77: 0 | Q77: - | R77: - | S77: 0
B78: - | D78: 0 | P78: 0 | Q78: - | R78: - | S78: 0
B79: - | D79: 0 | P79: 0 | Q79: - | R79: - | S79: 0
B80: - | D80: 0 | P80: 0 | Q80: - | R80: - | S80: =IF(P80=0,0,VLOOKUP(P80,Rec,3)) -> 0
B81: - | D81: 0 | P81: 0 | Q81: - | R81: - | S81: 0
B82: =R81 -> - | D82: =S81 -> 0 | P82: =IF(P81=0,0,IF((P81+1)>$N$21,0,P81+1)) -> 0 | Q82: =IF(P82=0,"-",VLOOKUP(P82,Rec,2)) -> - | R82: =IF(Q82="-","-",VLOOKUP(VALUE(RIGHT(Q82,2)),Meses,2)&" de "&LEFT(Q82,4)) -> - | S82: 0
B83: - | D83: 0 | P83: 0 | Q83: - | R83: - | S83: 0
B84: - | D84: 0 | P84: 0 | Q84: - | R84: - | S84: 0
B85: - | D85: 0 | P85: 0 | Q85: - | R85: - | S85: 0
B86: - | D86: 0 | P86: 0 | Q86: - | R86: - | S86: 0
B87: - | D87: 0 | P87: 0 | Q87: - | R87: - | S87: 0
B88: - | D88: 0 | P88: 0 | Q88: - | R88: - | S88: 0
B89: - | D89: 0 | P89: 0 | Q89: - | R89: - | S89: 0
B90: - | D90: 0 | P90: 0 | Q90: - | R90: - | S90: 0
B91: - | D91: 0 | P91: 0 | Q91: - | R91: - | S91: 0
B92: - | D92: 0 | P92: 0 | Q92: - | R92: - | S92: 0
B93: - | D93: 0 | P93: 0 | Q93: - | R93: - | S93: 0
B94: - | D94: 0 | P94: 0 | Q94: - | R94: - | S94: 0
B95: - | D95: 0 | P95: 0 | Q95: - | R95: - | S95: 0
B96: - | D96: 0 | P96: 0 | Q96: - | R96: - | S96: 0
B97: - | D97: 0 | P97: 0 | Q97: - | R97: - | S97: 0
B98: - | D98: 0 | P98: 0 | Q98: - | R98: - | S98: 0
B99: - | D99: 0 | P99: 0 | Q99: - | R99: - | S99: 0
B100: - | D100: 0 | P100: 0 | Q100: - | R100: - | S100: 0
B101: - | D101: 0 | P101: 0 | Q101: - | R101: - | S101: 0
B102: - | D102: 0 | P102: 0 | Q102: - | R102: - | S102: 0
B103: - | D103: 0 | P103: 0 | Q103: - | R103: - | S103: 0
B104: - | D104: 0 | P104: 0 | Q104: - | R104: - | S104: 0
B105: - | D105: 0 | P105: 0 | Q105: - | R105: - | S105: 0
B106: - | D106: 0 | P106: 0 | Q106: - | R106: - | S106: 0
B107: - | D107: 0 | P107: 0 | Q107: - | R107: - | S107: 0
B108: - | D108: 0 | P108: 0 | Q108: - | R108: - | S108: 0
B109: - | D109: 0 | P109: 0 | Q109: - | R109: - | S109: 0
B110: - | D110: 0 | P110: 0 | Q110: - | R110: - | S110: 0
B111: - | D111: 0 | P111: 0 | Q111: - | R111: - | S111: 0
B112: - | D112: 0 | P112: 0 | Q112: - | R112: - | S112: =IF(P112=0,0,VLOOKUP(P112,Rec,3)) -> 0
B113: - | D113: 0 | P113: 0 | Q113: - | R113: - | S113: 0
B114: - | D114: 0 | P114: 0 | Q114: =IF(P114=0,"-",VLOOKUP(P114,Rec,2)) -> - | R114: =IF(Q114="-","-",VLOOKUP(VALUE(RIGHT(Q114,2)),Meses,2)&" de "&LEFT(Q114,4)) -> - | S114: 0
B115: - | D115: 0 | P115: 0 | Q115: - | R115: - | S115: 0
B116: - | D116: 0 | P116: 0 | Q116: - | R116: - | S116: 0
B117: - | D117: 0 | P117: 0 | Q117: - | R117: - | S117: 0
B118: =R117 -> - | D118: =S117 -> 0 | P118: 0 | Q118: - | R118: - | S118: 0
B119: - | D119: 0 | P119: 0 | Q119: - | R119: - | S119: 0
B120: - | D120: 0 | P120: 0 | Q120: - | R120: - | S120: 0
B121: - | D121: 0 | P121: 0 | Q121: - | R121: - | S121: 0
B122: - | D122: 0 | P122: 0 | Q122: - | R122: - | S122: 0
B123: - | D123: 0 | P123: 0 | Q123: - | R123: - | S123: 0
B124: - | D124: 0 | P124: 0 | Q124: - | R124: - | S124: 0
B125: - | D125: 0 | P125: 0 | Q125: - | R125: - | S125: 0
B126: - | D126: 0 | P126: 0 | Q126: - | R126: - | S126: 0
B127: - | D127: 0 | P127: 0 | Q127: - | R127: - | S127: 0
B128: - | D128: 0 | P128: 0 | Q128: - | R128: - | S128: 0
B129: - | D129: 0 | P129: 0 | Q129: - | R129: - | S129: 0
B130: - | D130: 0 | P130: 0 | Q130: - | R130: - | S130: 0
B131: - | D131: 0 | P131: 0 | Q131: - | R131: - | S131: 0
B132: - | D132: 0 | P132: 0 | Q132: - | R132: - | S132: 0
B133: - | D133: 0 | P133: 0 | Q133: - | R133: - | S133: 0
B134: - | D134: 0 | P134: 0 | Q134: - | R134: - | S134: 0
B135: - | D135: 0 | P135: 0 | Q135: - | R135: - | S135: 0
B136: - | D136: 0 | P136: 0 | Q136: - | R136: - | S136: 0
B137: - | D137: 0 | P137: 0 | Q137: - | R137: - | S137: 0
B138: - | D138: 0 | P138: 0 | Q138: - | R138: - | S138: 0
B139: - | D139: 0 | P139: 0 | Q139: - | R139: - | S139: 0
B140: - | D140: 0 | P140: 0 | Q140: - | R140: - | S140: 0
B141: - | D141: 0 | P141: 0 | Q141: - | R141: - | S141: 0
B142: - | D142: 0 | P142: 0 | Q142: - | R142: - | S142: 0
B143: - | D143: 0 | P143: 0 | Q143: - | R143: - | S143: 0
B144: - | D144: 0 | P144: 0 | Q144: - | R144: - | S144: =IF(P144=0,0,VLOOKUP(P144,Rec,3)) -> 0
B145: - | D145: 0 | P145: 0 | Q145: - | R145: - | S145: 0
B146: - | D146: 0 | P146: =IF(P145=0,0,IF((P145+1)>$N$21,0,P145+1)) -> 0 | Q146: =IF(P146=0,"-",VLOOKUP(P146,Rec,2)) -> - | R146: =IF(Q146="-","-",VLOOKUP(VALUE(RIGHT(Q146,2)),Meses,2)&" de "&LEFT(Q146,4)) -> - | S146: 0
B147: - | D147: 0 | P147: 0 | Q147: - | R147: - | S147: 0
B148: - | D148: 0 | P148: 0 | Q148: - | R148: - | S148: 0
B149: - | D149: 0 | P149: 0 | Q149: - | R149: - | S149: 0
B150: - | D150: 0 | P150: 0 | Q150: - | R150: - | S150: 0
B151: - | D151: 0 | P151: 0 | Q151: - | R151: - | S151: 0
B152: - | D152: 0 | P152: 0 | Q152: - | R152: - | S152: 0
B153: - | D153: 0 | P153: 0 | Q153: - | R153: - | S153: 0

Sheet Mem Calc
A1: IMPUESTOS DEL EJERCICIO FISCAL
G2: Regresa al menú Anterior
B4: CALCULO DEL FACTOR DE ACTUALIZACION
G7: INPC | I7: Factor
B9: Mes mas reciente: | D9: =VLOOKUP(Efectua_Calculo!I26,Meses,2) -> Diciembre | E9: =Efectua_Calculo!I25 -> 2013 | G9: =VLOOKUP(Efectua_Calculo!I25,INPC,Efectua_Calculo!I26+1) -> 111.508 | I9: =Efectua_Calculo!J29 -> 1.0355
B10: Mes mas antiguo: | D10: =VLOOKUP(Efectua_Calculo!I22,Meses,2) -> Enero | E10: =Efectua_Calculo!I21 -> 2013 | G10: =VLOOKUP(Efectua_Calculo!I21,INPC,Efectua_Calculo!I22+1) -> 107.678
A12: (No se actualizan los importes por períodos menores a un mes (Art 17-A 1er. párrafo CFF)
B14: SUMA DE RECARGOS
M16: =Recargos!Y1 -> 201303 | N16: =Recargos!Y2 -> 201401 | P16: =VLOOKUP(M16,Recargos,5) -> 185 | Q16: =IF(P16=0,0,VLOOKUP(P16,Rec,2)) -> 201303 | R16: =IF(Q16=0,0,VLOOKUP(VALUE(RIGHT(Q16,2)),Meses,2)&" de "&LEFT(Q16,4)) -> Marzo de 2013 | S16: =VLOOKUP(P16,Rec,3) -> 1.13
B17: =R16 -> Marzo de 2013 | D17: =S16 -> 1.13 | G17: Total de Recargos | I17: =SUM(D17:D153)/100 -> 0.1243 | P17: =IF((P16+1)>$N$21,0,P16+1) -> 186 | Q17: =IF(P17=0,"-",VLOOKUP(P17,Rec,2)) -> 201304 | R17: =IF(Q17="-","-",VLOOKUP(VALUE(RIGHT(Q17,2)),Meses,2)&" de "&LEFT(Q17,4)) -> Abril de 2013 | S17: =IF(R17="-","-",VLOOKUP(P17,Rec,3)) -> 1.13
B18: =R17 -> Abril de 2013 | D18: =S17 -> 1.13 | M18: =RIGHT(M16,2) -> 03 | N18: =RIGHT(N16,2) -> 01 | P18: =IF(P17=0,0,IF((P17+1)>$N$21,0,P17+1)) -> 187 | Q18: =IF(P18=0,"-",VLOOKUP(P18,Rec,2)) -> 201305 | R18: =IF(Q18="-","-",VLOOKUP(VALUE(RIGHT(Q18,2)),Meses,2)&" de "&LEFT(Q18,4)) -> Mayo de 2013 | S18: 1.13
B19: Mayo de 2013 | D19: 1.13 | M19: =LEFT(M16,4) -> 2013 | N19: =LEFT(N16,4) -> 2014 | P19: =IF(P18=0,0,IF((P18+1)>$N$21,0,P18+1)) -> 188 | Q19: 201306 | R19: Junio de 2013 | S19: 1.13
B20: Junio de 2013 | D20: 1.13 | P20: =IF(P19=0,0,IF((P19+1)>$N$21,0,P19+1)) -> 189 | Q20: 201307 | R20: Julio de 2013 | S20: 1.13
B21: Julio de 2013 | D21: 1.13 | N21: =VLOOKUP(N16,Recargos,5) -> 195 | P21: =IF(P20=0,0,IF((P20+1)>$N$21,0,P20+1)) -> 190 | Q21: 201308 | R21: Agosto de 2013 | S21: 1.13
B22: Agosto de 2013 | D22: 1.13 | P22: =IF(P21=0,0,IF((P21+1)>$N$21,0,P21+1)) -> 191 | Q22: 201309 | R22: Septiembre de 2013 | S22: 1.13
B23: Septiembre de 2013 | D23: 1.13 | P23: 192 | Q23: 201310 | R23: Octubre de 2013 | S23: 1.13
B24: Octubre de 2013 | D24: 1.13 | P24: 193 | Q24: 201311 | R24: Noviembre de 2013 | S24: 1.13
B25: Noviembre de 2013 | D25: 1.13 | P25: 194 | Q25: 201312 | R25: Diciembre de 2013 | S25: 1.13
B26: Diciembre de 2013 | D26: 1.13 | P26: 195 | Q26: 201401 | R26: Enero de 2014 | S26: 1.13
B27: Enero de 2014 | D27: 1.13 | P27: 0 | Q27: - | R27: - | S27: -
B28: - | D28: - | P28: 0 | Q28: - | R28: - | S28: -
B29: - | D29: - | P29: 0 | Q29: - | R29: - | S29: -
B30: - | D30: - | P30: 0 | Q30: - | R30: - | S30: -
B31: - | D31: - | P31: 0 | Q31: - | R31: - | S31: -
B32: - | D32: - | P32: 0 | Q32: - | R32: - | S32: -
B33: - | D33: - | P33: 0 | Q33: - | R33: - | S33: -
B34: - | D34: - | P34: 0 | Q34: - | R34: - | S34: -
B35: - | D35: - | P35: 0 | Q35: - | R35: - | S35: -
B36: - | D36: - | P36: 0 | Q36: - | R36: - | S36: -
B37: - | D37: - | P37: 0 | Q37: - | R37: - | S37: -
B38: - | D38: - | P38: 0 | Q38: - | R38: - | S38: -
B39: - | D39: - | P39: 0 | Q39: - | R39: - | S39: -
B40: - | D40: - | P40: 0 | Q40: - | R40: - | S40: -
B41: - | D41: - | P41: 0 | Q41: - | R41: - | S41: -
B42: - | D42: - | P42: 0 | Q42: - | R42: - | S42: -
B43: - | D43: - | P43: 0 | Q43: - | R43: - | S43: -
B44: - | D44: - | P44: 0 | Q44: - | R44: - | S44: -
B45: - | D45: - | P45: 0 | Q45: - | R45: - | S45: -
B46: - | D46: - | P46: 0 | Q46: - | R46: - | S46: -
B47: - | D47: - | P47: 0 | Q47: - | R47: - | S47: -
B48: - | D48: - | P48: 0 | Q48: - | R48: - | S48: -
B49: - | D49: - | P49: 0 | Q49: - | R49: - | S49: =IF(R49="-","-",VLOOKUP(P49,Rec,3)) -> -
B50: - | D50: - | P50: 0 | Q50: =IF(P50=0,"-",VLOOKUP(P50,Rec,2)) -> - | R50: =IF(Q50="-","-",VLOOKUP(VALUE(RIGHT(Q50,2)),Meses,2)&" de "&LEFT(Q50,4)) -> - | S50: -
B51: - | D51: - | P51: 0 | Q51: - | R51: - | S51: -
B52: - | D52: - | P52: 0 | Q52: - | R52: - | S52: -
B53: - | D53: - | P53: 0 | Q53: - | R53: - | S53: -
B54: - | D54: - | P54: 0 | Q54: - | R54: - | S54: -
B55: - | D55: - | P55: 0 | Q55: - | R55: - | S55: -
B56: - | D56: - | P56: 0 | Q56: - | R56: - | S56: -
B57: - | D57: - | P57: 0 | Q57: - | R57: - | S57: -
B58: - | D58: - | P58: 0 | Q58: - | R58: - | S58: -
B59: - | D59: - | P59: 0 | Q59: - | R59: - | S59: -
B60: - | D60: - | P60: 0 | Q60: - | R60: - | S60: -
B61: - | D61: - | P61: 0 | Q61: - | R61: - | S61: -
B62: - | D62: - | P62: 0 | Q62: - | R62: - | S62: -
B63: - | D63: - | P63: 0 | Q63: - | R63: - | S63: -
B64: - | D64: - | P64: 0 | Q64: - | R64: - | S64: -
B65: - | D65: - | P65: 0 | Q65: - | R65: - | S65: -
B66: - | D66: - | P66: 0 | Q66: - | R66: - | S66: -
B67: - | D67: - | P67: 0 | Q67: - | R67: - | S67: -
B68: - | D68: - | P68: 0 | Q68: - | R68: - | S68: -
B69: - | D69: - | P69: 0 | Q69: - | R69: - | S69: -
B70: - | D70: - | P70: 0 | Q70: - | R70: - | S70: -
B71: - | D71: - | P71: 0 | Q71: - | R71: - | S71: -
B72: - | D72: - | P72: 0 | Q72: - | R72: - | S72: -
B73: - | D73: - | P73: 0 | Q73: - | R73: - | S73: -
B74: - | D74: - | P74: 0 | Q74: - | R74: - | S74: -
B75: - | D75: - | P75: 0 | Q75: - | R75: - | S75: -
B76: - | D76: - | P76: 0 | Q76: - | R76: - | S76: -
B77: - | D77: - | P77: 0 | Q77: - | R77: - | S77: -
B78: - | D78: - | P78: 0 | Q78: - | R78: - | S78: -
B79: - | D79: - | P79: 0 | Q79: - | R79: - | S79: -
B80: - | D80: - | P80: 0 | Q80: - | R80: - | S80: -
B81: - | D81: - | P81: 0 | Q81: - | R81: - | S81: =IF(R81="-","-",VLOOKUP(P81,Rec,3)) -> -
B82: =R81 -> - | D82: =S81 -> - | P82: 0 | Q82: =IF(P82=0,"-",VLOOKUP(P82,Rec,2)) -> - | R82: =IF(Q82="-","-",VLOOKUP(VALUE(RIGHT(Q82,2)),Meses,2)&" de "&LEFT(Q82,4)) -> - | S82: -
B83: - | D83: - | P83: 0 | Q83: - | R83: - | S83: -
B84: - | D84: - | P84: 0 | Q84: - | R84: - | S84: -
B85: - | D85: - | P85: 0 | Q85: - | R85: - | S85: -
B86: - | D86: - | P86: =IF(P85=0,0,IF((P85+1)>$N$21,0,P85+1)) -> 0 | Q86: - | R86: - | S86: -
B87: - | D87: - | P87: 0 | Q87: - | R87: - | S87: -
B88: - | D88: - | P88: 0 | Q88: - | R88: - | S88: -
B89: - | D89: - | P89: 0 | Q89: - | R89: - | S89: -
B90: - | D90: - | P90: 0 | Q90: - | R90: - | S90: -
B91: - | D91: - | P91: 0 | Q91: - | R91: - | S91: -
B92: - | D92: - | P92: 0 | Q92: - | R92: - | S92: -
B93: - | D93: - | P93: 0 | Q93: - | R93: - | S93: -
B94: - | D94: - | P94: 0 | Q94: - | R94: - | S94: -
B95: - | D95: - | P95: 0 | Q95: - | R95: - | S95: -
B96: - | D96: - | P96: 0 | Q96: - | R96: - | S96: -
B97: - | D97: - | P97: 0 | Q97: - | R97: - | S97: -
B98: - | D98: - | P98: 0 | Q98: - | R98: - | S98: -
B99: - | D99: - | P99: 0 | Q99: - | R99: - | S99: -
B100: - | D100: - | P100: 0 | Q100: - | R100: - | S100: -
B101: - | D101: - | P101: 0 | Q101: - | R101: - | S101: -
B102: - | D102: - | P102: 0 | Q102: - | R102: - | S102: -
B103: - | D103: - | P103: 0 | Q103: - | R103: - | S103: -
B104: - | D104: - | P104: 0 | Q104: - | R104: - | S104: -
B105: - | D105: - | P105: 0 | Q105: - | R105: - | S105: -
B106: - | D106: - | P106: 0 | Q106: - | R106: - | S106: -
B107: - | D107: - | P107: 0 | Q107: - | R107: - | S107: -
B108: - | D108: - | P108: 0 | Q108: - | R108: - | S108: -
B109: - | D109: - | P109: 0 | Q109: - | R109: - | S109: -
B110: - | D110: - | P110: 0 | Q110: - | R110: - | S110: -
B111: - | D111: - | P111: 0 | Q111: - | R111: - | S111: -
B112: - | D112: - | P112: 0 | Q112: - | R112: - | S112: -
B113: - | D113: - | P113: 0 | Q113: - | R113: - | S113: =IF(R113="-","-",VLOOKUP(P113,Rec,3)) -> -
B114: - | D114: - | P114: 0 | Q114: =IF(P114=0,"-",VLOOKUP(P114,Rec,2)) -> - | R114: =IF(Q114="-","-",VLOOKUP(VALUE(RIGHT(Q114,2)),Meses,2)&" de "&LEFT(Q114,4)) -> - | S114: -
B115: - | D115: - | P115: 0 | Q115: - | R115: - | S115: -
B116: - | D116: - | P116: 0 | Q116: - | R116: - | S116: -
B117: - | D117: - | P117: 0 | Q117: - | R117: - | S117: -
B118: =R117 -> - | D118: =S117 -> - | P118: 0 | Q118: - | R118: - | S118: -
B119: - | D119: - | P119: 0 | Q119: - | R119: - | S119: -
B120: - | D120: - | P120: 0 | Q120: - | R120: - | S120: -
B121: - | D121: - | P121: 0 | Q121: - | R121: - | S121: -
B122: - | D122: - | P122: 0 | Q122: - | R122: - | S122: -
B123: - | D123: - | P123: 0 | Q123: - | R123: - | S123: -
B124: - | D124: - | P124: 0 | Q124: - | R124: - | S124: -
B125: - | D125: - | P125: 0 | Q125: - | R125: - | S125: -
B126: - | D126: - | P126: 0 | Q126: - | R126: - | S126: -
B127: - | D127: - | P127: 0 | Q127: - | R127: - | S127: -
B128: - | D128: - | P128: 0 | Q128: - | R128: - | S128: -
B129: - | D129: - | P129: 0 | Q129: - | R129: - | S129: -
B130: - | D130: - | P130: 0 | Q130: - | R130: - | S130: -
B131: - | D131: - | P131: 0 | Q131: - | R131: - | S131: -
B132: - | D132: - | P132: 0 | Q132: - | R132: - | S132: -
B133: - | D133: - | P133: 0 | Q133: - | R133: - | S133: -
B134: - | D134: - | P134: 0 | Q134: - | R134: - | S134: -
B135: - | D135: - | P135: 0 | Q135: - | R135: - | S135: -
B136: - | D136: - | P136: 0 | Q136: - | R136: - | S136: -
B137: - | D137: - | P137: 0 | Q137: - | R137: - | S137: -
B138: - | D138: - | P138: 0 | Q138: - | R138: - | S138: -
B139: - | D139: - | P139: 0 | Q139: - | R139: - | S139: -
B140: - | D140: - | P140: 0 | Q140: - | R140: - | S140: -
B141: - | D141: - | P141: 0 | Q141: - | R141: - | S141: -
B142: - | D142: - | P142: 0 | Q142: - | R142: - | S142: -
B143: - | D143: - | P143: 0 | Q143: - | R143: - | S143: -
B144: - | D144: - | P144: 0 | Q144: - | R144: - | S144: -
B145: - | D145: - | P145: 0 | Q145: - | R145: - | S145: =IF(R145="-","-",VLOOKUP(P145,Rec,3)) -> -
B146: - | D146: - | P146: 0 | Q146: =IF(P146=0,"-",VLOOKUP(P146,Rec,2)) -> - | R146: =IF(Q146="-","-",VLOOKUP(VALUE(RIGHT(Q146,2)),Meses,2)&" de "&LEFT(Q146,4)) -> - | S146: -
B147: - | D147: - | P147: 0 | Q147: - | R147: - | S147: -
B148: - | D148: - | P148: 0 | Q148: - | R148: - | S148: -
B149: - | D149: - | P149: 0 | Q149: - | R149: - | S149: -
B150: - | D150: - | P150: =IF(P149=0,0,IF((P149+1)>$N$21,0,P149+1)) -> 0 | Q150: - | R150: - | S150: -
B151: - | D151: - | P151: =IF(P150=0,0,IF((P150+1)>$N$21,0,P150+1)) -> 0 | Q151: - | R151: - | S151: -
B152: - | D152: - | P152: =IF(P151=0,0,IF((P151+1)>$N$21,0,P151+1)) -> 0 | Q152: - | R152: - | S152: -
B153: - | D153: - | P153: =IF(P152=0,0,IF((P152+1)>$N$21,0,P152+1)) -> 0 | Q153: - | R153: - | S153: -
